{"text_format":"1","workbook":"xlsx","n_sheets":23,"sheets":["Cover Page","Facility Info","Operational Data","Operational Summary","Perf. Form 1","Energy Form 1","Permit Compliance","Improvements","Public Liasion","CO2 N2O","Residues","Water","Air (periodic)","Air (CEMS)","HCl","SO2","NOx","TOC","Particulates","CO 0.5 hourly","CO 95% 10 min","NH3","Template changes log"],"not_rendered":{"charts":8,"images":3,"macros":1,"external_links":0,"defined_names":23,"comments":0,"pivot_tables":0},"unopened":[],"bounds":{"document_bytes":16777216,"sheet_cells":100000,"rows_first":2000,"rows_last":500,"rows_between":2000,"halvings":0,"cell_chars":16384,"cell_head_chars":4096},"cells_cut":0,"cells_raw":0,"read":"whole","date_system":"1900"}

{"sheet":"Cover Page","index":0,"n_rows":53,"n_cols":11,"rows_kept":53,"cut":false,"hidden":false,"merged":[[48,2,48,3],[48,6,48,8],[52,2,52,3],[36,1,36,8],[40,2,40,8],[42,2,42,4],[44,2,44,4],[46,2,46,3],[46,6,46,8],[13,10,18,12],[34,1,34,8],[0,3,5,6],[7,1,23,8],[28,1,28,8],[30,1,30,8],[32,1,32,8]]}
[null,null,null,"Add company logo"]
[null,null,null,null,null,null,null,null,null,null,"Template version 25.1a (for incinerators) - 27/11/25"]
[]
[null,null,null,null,null,null,null,null,null,null,"Note that there is another version of this template available for co-incinerators"]
[]
[]
[]
[null,"Add photo"]
[]
[]
[]
[]
[null,null,null,null,null,null,null,null,null,null,"Notes:"]
[null,null,null,null,null,null,null,null,null,null,"This template may require adjustments by individual operators to meet specific reporting requirements as defined in the site Permit(s)"]
[]
[]
[]
[]
[]
[]
[]
[]
[]
[]
[]
[]
[]
[]
[null,"Annual Performance Report 2025"]
[]
[null,"Permit EPR/SP3409LC"]
[]
[null,"Ellesmere Port Incinerator"]
[]
[null,"other name of facility (if applicable)"]
[]
[null,"Veolia ES (UK) Ltd"]
[]
[null,"Year:",2025]
[]
[null,"Address:","Bridges Road, Ellesmere Port, CH65 4EQ"]
[]
[null,"Tel: ","0203 567 4564"]
[]
[null,"Email: ","jessica.roberts@veolia.com"]
[]
[null,"Prepared by:","Jessica Roberts",null,null,"Position:","Head of Compliance"]
[]
[null,"Approved by:","Angela Bergquist",null,null,"Position:","General Manager"]
[]
[null,"Version:",1]
[]
[null,"Issue Date:","2026-01-31"]

{"sheet":"Facility Info","index":1,"n_rows":22,"n_cols":11,"rows_kept":22,"cut":false,"hidden":false,"merged":[[4,0,17,8],[21,0,53,8],[4,10,13,13],[21,10,30,13]]}
[{"$f":"+'Cover Page'!$B$29","v":"Annual Performance Report 2025"},null,null,null,{"$f":"+'Cover Page'!$B$33","v":"Ellesmere Port Incinerator"}]
[]
["Plant Description and Design",null,null,null,null,null,null,null,null,null,"Notes:"]
[]
["The main purpose of the facility is disposal of solid and liquid hazardous waste by incineration as well as some non-hazardous wastes. \n\nThe design capacity is 15 tonnes per hour. \n\nThe facility also includes a transfer activity where wastes are stored prior to transfer to other facilities.\n\nSolid and liquid wastes are delivered in bulk tankers or drums. Gaseous wastes are also accepted. ",null,null,null,null,null,null,null,null,null,"Include summary of plant design, design capacity, no. of combustion lines, electrical and heat capacity and any other general information that describes the facility, its location and purpose "]
[]
[]
[]
[]
[]
[]
[]
[]
[]
[]
[]
[]
[]
[]
["Summary of Operational Processes and Procedures"]
[]
["Wastes are analysed, at an appropriate frequency, to confirm that the waste is as described, segregated and stored for incineration. Drummed solid wastes are transferred to the incinerator by a dedicated, automated drum feed system. Packaged materials are fed via a manually operated airlock charging system.\nWastes are burned in the rotary kiln furnace. Combustion gases pass into secondary combustion chamber to ensure efficient combustion. Combustion gases are then cooled to minimise the time the gases are in the dioxin re-formation temperature zone. Particulates are collected in an ash hopper at the base of this section.\nExhaust gases are then cleaned in a wet scrubbing system that consists of two scrubbing towers. The\nscrubbing system abates acid gases and further cools the exhaust gases. Lime injection is used to further remove acid gases. Exhaust gases are reheated to avoid condensation and then passed through a bag filter to abate particulates. Continuous emission monitoring is undertaken in the horizontal duct section after the bag filter section (prior to the re-injection of hot air). Acidic aqueous effluent from the scrubbers is treated on site by neutralisation, flocculation, settlement and dewatering. The effluent is then discharged to the River Gowy.\nExhaust gases are emitted via an 80 m high stack. Emissions are monitored continuously or periodically for some pollutants, in line with the permit requirements.\nAn environmental management system accredited to ISO 14001 is used.",null,null,null,null,null,null,null,null,null,"Include summary of key processes and procedures such as (but not limited to); waste reception, control rooms, grate, bed and boiler, energy & heat  generation, cooling systems, residue management, emission controls, health and safety systems, maintenance"]

{"sheet":"Operational Data","index":2,"n_rows":65,"n_cols":10,"rows_kept":65,"cut":false,"hidden":false,"merged":[[4,9,23,9],[25,9,29,9],[53,0,57,0],[34,1,39,1],[3,1,3,2],[10,1,22,1],[26,1,28,1],[7,2,7,3]]}
[{"$f":"+'Cover Page'!$B$29","v":"Annual Performance Report 2025"},null,null,null,{"$f":"+'Cover Page'!$B$33","v":"Ellesmere Port Incinerator"}]
[]
["Operational Data"]
["Plant Size:",100000,null,"tonnes pa",null,null,null,null,null,"Notes:"]
["Nominal net thermal input:",null,"MWth",null,null,null,null,null,null,"* Export capacity = nominal generation capacity at the generator terminals minus nominal parasitic load.\n\n** CHP and district heating plants only - put N/A if no heat export.\n\n***  Combusted tonnage = tonnes delivered in period + (tonnes in bunker at start of period – tonnes in bunker at end of period), or equivalent calculation depending on plant type\n\n**** Availability Definition: The availability of a line is to be calculated by the number of hours the line reported Continuously Monitored emission levels to the Regulator through the calendar year divided by the total number of hours in that year. \n\nThe overall plant availability is calculated as the mean of all lines in the plant. For clarity this includes periods of abnormal operation.  \n\nRationale: The primary function of an Energy from Waste facility is the disposal of waste. It follows therefore that the availability of a plant is determined by the period of time a facility spends undertaking this activity.\n\n*****NCV of waste: This should be completed for all plants which have a boiler. Calculate using total thermal power produced by boiler/boiler efficiency, or other suitable calculation. \n"]
["Nominal electrical export capacity*:",0,"MWe"]
["Nominal heat export capacity**:",0,"MWth"]
["No. of combustion lines:",1,"No. of steam turbines:",null,0]
[]
["Waste types received","Unit","Q1","Q2","Q3","Q4","Year Total","%"]
["Household / Local Authority","tonnes",0,0,0,0,{"$f":"SUM(C11:F11)","v":0},{"$f":"IF(G11>0,G11/$G$21,\"-\")","v":"-"}]
["Commercial & Industrial ",null,0,0,0,0,{"$f":"SUM(C12:F12)","v":0},"-"]
["Hazardous ",null,19829.37,14523.17,14998.98,14840.13,64191.65,0.95596593637948857]
["Clinical",null,405,305.66000000000003,259.37,290.52,1260.5500000000002,1.87725796283966E-2]
["Waste wood (biomass) ",null,0,0,0,0,0,"-"]
["Refuse Derived Fuel (incl. SRF) - H'hold/LA",null,0,0,0,0,{"$f":"SUM(C16:F16)","v":0},"-"]
["Refuse Derived Fuel (incl. SRF) - C&I",null,0,0,0,0,0,"-"]
["Non Hazardous",null,112.93,101.87,61.54,317.87,594.21,8.8491964150486241E-3]
["TFS",null,0,0.98,0,0,0.98,1.4594524640695462E-5]
["LLW",null,244.58,146.16999999999999,546.71,163.62,1101.08,1.6397693052425468E-2]
["Total waste received",null,{"$f":"SUM(C11:C20)","v":20591.88},{"$f":"SUM(D11:D20)","v":15077.85},{"$f":"SUM(E11:E20)","v":15866.600000000002},{"$f":"SUM(F11:F20)","v":15612.140000000001},67148.47]
["Rejected Waste ",null,71.16,273.83999999999997,158.63999999999999,108.22,{"$f":"SUM(C22:F22)","v":611.86},{"$f":"IF(G22>0,G22/$G$21,\"-\")","v":9.1120467823019649E-3}]
["Unprocessed waste transferred out",null,{"$f":"-D23-C230","v":0},0,0,0,{"$f":"SUM(C23:F23)","v":0},{"$f":"IF(G23>0,G23/$G$21,\"-\")","v":"-"}]
["Total waste combusted ***",null,19265,15399,16228.8,14953.7,{"$f":"SUM(C24:F24)","v":65846.5}]
[]
["Energy Usage / Export","Unit","Q1","Q2","Q3","Q4","Year Total","KWh/te",null,"Password for protected cells\nA password has been set to prevent accidental  editing of cells with formulae. \nIf you still need to make an edit for some reason then the password = 1234"]
["Power generated at generator terminals","MWh",0,0,0,0,{"$f":"SUM(C27:F27)","v":0},{"$f":"IF(G27>0,G27*1000/$G$24,\"-\")","v":"-"}]
["Power exported to grid and other external user(s)",null,0,0,0,0,{"$f":"SUM(C28:F28)","v":0},{"$f":"IF(G28>0,G28*1000/$G$24,\"-\")","v":"-"}]
["Power imported",null,0,0,0,0,0,{"$f":"IF(G29>0,G29*1000/$G$24,\"-\")","v":"-"}]
["Indicative parasitic load","%",{"$f":"IF(C27>0,(C27-C28)/C27,\"-\")","v":"-"},{"$f":"IF(D27>0,(D27-D28)/D27,\"-\")","v":"-"},"-","-",{"$f":"IF(G27>0,1-G28/(G27+G29),\"-\")","v":"-"}]
["Thermal Energy Exported **",null,0,0,0,0,{"$f":"SUM(C31:F31)","v":0},{"$f":"IF(G31>0,G31*1000/$G$24,\"-\")","v":"-"}]
["R1 value (if applicable)","R1","-","-","-","-",0]
[]
["Waste Disposal & Recovery","Unit","Q1","Q2","Q3","Q4","Year Total","% inputs"]
["APC Residues - produced","tonnes",0,0,0,0,{"$f":"SUM(C35:F35)","v":0},{"$f":"IF(G35>0,G35/$G$24,\"-\")","v":"-"}]
["IBA - produced",null,809.54,1028.32,688.85,617.54,3144.25,{"$f":"IF(G36>0,G36/$G$24,\"-\")","v":4.7751209251820519E-2}]
["Metals recycling",null,11.24,22.76,4.62,2.96,{"$f":"SUM(C37:F37)","v":41.58},6.3146864298026467E-4]
["Filtercake- Hazardous",null,1412.87,1318.56,1312.57,986.54,{"$f":"SUM(C38:F38)","v":5030.54},7.6397986225539699E-2]
["Filtercake- Non Hazardous",null,47.72,23.92,52.88,341.28,465.79999999999995,7.074028232328217E-3]
["Ferrous Metal from IBA",null,100.7,33.9,19.96,0,154.56,2.3472773799670444E-3]
[]
["Raw Material Usage","Unit","Q1","Q2","Q3","Q4","Year Total","Qty./te"]
["Mains Water- Towns","ltrs",4964000,5035000,4884000,5353000,{"$f":"SUM(C43:F43)","v":20236000},{"$f":"IF(G43>0,G43/$G$24,\"-\")","v":307.32081431814902}]
["Other Water- Dee","ltrs",41864000,53058000,46737000,87587000,229246000,{"$f":"IF(G44>0,G44/$G$24,\"-\")","v":3481.5214172355404}]
["Ammonia","kgs",0,0,0,0,0,"-"]
["Urea","kgs",56000,56000,56000,56000,{"$f":"SUM(C46:F46)","v":224000},3.4018512753145576]
["Activated Carbon","kgs",0,0,0,0,0,"-"]
["Lime / hydrated lime","kgs",440280,609420,460080,516800,2026580,30.777338203245428]
["Fuel oil","ltrs",209900,256980,192690,318620,978190,14.855611156249763]
["Gas","m3",0,0,0,0,0,"-"]
["Caustic","lts",607610,621060,540430,513740,2282840,34.669116809549486]
[]
["Summary ","Line/Unit","Q1","Q2","Q3","Q4","Year Total",null,"Hrs in year "]
["Availability of waste combustion by line, hrs ****",1,2112.2600000000002,1891.13,1813.87,1884.53,{"$f":"SUM(C54:F54)","v":7701.79},{"$f":"+G54/$I$54","v":0.8791997716894977},8760,"Change this figure to 8784 in a leap year"]
[null,2,null,null,null,null,0,{"$f":"+G55/$I$54","v":0}]
[null,3,null,null,null,null,0,0]
[null,4,null,null,null,null,0,0]
[null,5,null,null,null,null,{"$f":"SUM(C58:F58)","v":0},0]
["Hours of turbine operations, hrs",1,0,0,0,0,0,0]
["Hours of turbine operations, hrs",2,0,0,0,0,0,0]
["Hours of heat / steam export**","hours",0,0,0,0,0,{"$f":"IF(B61>0,G60/I54,\"n/a\")","v":0}]
["Net calorific value of waste*****","MJ/kg",0,0,0,0,0]
["Abnormal operation events","qty.",2,0,0,0,2,{"$f":"IF(G63>0,\"yes\",\"no\")","v":"yes"}]
["Abnormal operation duration","hours",7.08,0,0,0,7.08,{"$f":"+(G64)/I54","v":8.0821917808219178E-4}]
["Permit Breaches","qty.",0,0,0,0,0,{"$f":"IF(G65>0,\"yes\",\"no\")","v":"no"}]

{"sheet":"Operational Summary","index":3,"n_rows":44,"n_cols":11,"rows_kept":44,"cut":false,"hidden":false,"merged":[[29,10,44,13],[4,0,26,8],[4,10,13,13],[28,1,28,8],[29,2,29,8],[30,2,30,8],[31,2,31,8],[32,2,32,8],[33,2,33,8],[34,2,34,8],[35,2,35,8],[36,2,36,8],[37,2,37,8],[38,2,38,8],[46,2,46,8],[39,2,39,8],[40,2,40,8],[43,2,43,8],[44,2,44,8],[45,2,45,8],[41,2,41,8],[42,2,42,8]]}
[{"$f":"+'Cover Page'!$B$29","v":"Annual Performance Report 2025"},null,null,null,{"$f":"+'Cover Page'!$B$33","v":"Ellesmere Port Incinerator"}]
[]
["Summary of Plant Operations and Maintenance during the reporting year",null,null,null,null,null,null,null,null,null,"Notes:"]
[]
["Plant availability was down compared to budget- 87.9% vs. 89.45% budget.   7701 hours online with 528 hours off for planned maintenance and 531 off for unplanned maintenance. No major outage in 2025.  Next major shutdown is planned for April-May 2026.  \n\nUnplanned maintenance events included South Recuperator Repair, 24V DC Incomer Electrical Fault and ID fan bearing failure.\n\n45hrs off-waste related to planned industrial action that was called off at the last minute but the plant had already been put into a safe state.\n\n65847 tonnes of waste processed in 2025.  New streams included AFFF containing PFAS of which we processed 1200 tonnes.",null,null,null,null,null,null,null,null,null,"Include summary of key operational and/or maintenance activity undertaken in the year, such as any major component upgrades and/or replacements "]
[]
[]
[]
[]
[]
[]
[]
[]
[]
[]
[]
[]
[]
[]
[]
[]
[]
[]
[]
[]
[]
[]
[]
["Unplanned maintenance events include South recuperator repair, 24V DC incomer electrical fault","Plant shut-downs"]
["Start date","End date","Reason for shut-down",null,null,null,null,null,null,null,"Provide a very brief reason for plant shut-down e.g. \"Shut-down prior to major outage\"; \"Emergency shut-down due to boiler tube leak\". All emergency shut-downs must be listed (irrespective of whether or not they were required to be reported to the EA). \n\nThere is no need to include periods of hot-standby here (e.g. to clear feed chute hopper blockages).\n\nFor clinical waste incinerators which require regular shut-downs for boiler cleaning, there is no need to record these here (only those prior to major outages, and emergency shut-downs). "]
["2025-01-06","2025-01-07","Planned soak to fix damage to the south recuperator shell."]
["2025-01-07","2025-01-07","Issue with lime feed system into the fabric filter and subsequent seating of the by-pass damper."]
["2025-02-14","2025-02-14","24V DC incomer supply crimped terminal overheated, damaging cable due to arcing."]
["2025-03-04","2025-03-04","Replacement of the process water spill back valve."]
["2025-06-17","2025-06-17","Power trip and subsequent firing of the emergency vent."]
["2025-06-26","2025-06-27","Strike action preparation."]
["2025-07-06","2025-07-06","Fabric filter investigation."]
["2025-07-23","2025-07-23","Power loss due to Scottish Power work external to site."]
["2025-09-04","2025-09-05","ID Fan fault."]
["2025-09-10","2025-09-11","Sat vent blockage clearance."]
["2025-10-31","2025-10-31","Demister pull and clean."]
["2025-11-20","2025-11-22","Fabric filter sock replacement."]
["2025-12-08","2025-12-11","ID fan bearing failure and replacement."]
["2025-12-16","2025-12-19","Pressure release from drum raised the SCC pressure to 5mbar causing safety shutoff.  Subsequent repair of the front wall kin shoes required."]

{"sheet":"Perf. Form 1","index":4,"n_rows":67,"n_cols":10,"rows_kept":67,"cut":false,"hidden":false,"merged":[[26,8,26,9],[27,0,27,1],[27,2,27,3],[27,4,27,5],[27,6,27,7],[27,8,27,9],[25,0,25,1],[26,0,26,1],[13,0,13,1],[13,2,13,3],[13,4,13,5],[13,6,13,7],[13,8,13,9],[14,0,14,1],[14,8,14,9],[14,2,14,3],[14,4,14,5],[14,6,14,7],[15,0,15,1],[15,4,15,5],[15,6,15,7],[15,8,15,9],[15,2,15,3],[25,2,25,3],[25,4,25,5],[25,6,25,7],[25,8,25,9],[26,2,26,3],[26,4,26,5],[26,6,26,7],[60,0,60,1],[62,0,62,9],[63,0,64,9],[51,0,51,9],[52,0,53,9],[56,0,56,1],[56,2,56,9],[58,0,58,1],[59,0,59,1],[49,0,49,3],[49,4,49,5],[49,7,49,8],[50,0,50,3],[50,4,50,5],[50,7,50,8],[47,0,47,3],[47,4,47,5],[47,7,47,8],[48,0,48,3],[48,4,48,5],[48,7,48,8],[44,0,44,3],[44,7,44,8],[45,0,45,3],[45,4,45,5],[45,7,45,8],[46,0,46,3],[46,4,46,5],[46,7,46,8],[36,0,36,3],[36,4,36,5],[36,6,36,7],[36,8,36,9],[38,0,38,9],[39,0,41,9],[34,0,34,1],[34,2,34,3],[34,4,34,5],[34,6,34,7],[34,8,34,9],[35,0,35,3],[35,4,35,5],[35,6,35,7],[35,8,35,9],[23,0,23,1],[23,2,23,3],[23,4,23,5],[23,6,23,7],[23,8,23,9],[24,0,24,1],[24,2,24,3],[24,4,24,5],[24,6,24,7],[24,8,24,9],[21,0,21,1],[21,2,21,3],[21,4,21,5],[21,6,21,7],[21,8,21,9],[22,0,22,1],[22,2,22,3],[22,4,22,5],[22,6,22,7],[22,8,22,9],[12,4,12,5],[12,6,12,7],[12,8,12,9],[19,0,19,1],[19,2,19,3],[19,4,19,5],[19,6,19,7],[19,8,19,9],[20,0,20,9],[17,0,17,1],[17,2,17,3],[17,4,17,5],[17,6,17,7],[17,8,17,9],[18,0,18,3],[18,4,18,5],[18,6,18,7],[18,8,18,9],[29,8,29,9],[9,0,9,9],[10,0,10,1],[10,2,10,3],[10,4,10,5],[10,6,10,7],[10,8,10,9],[2,0,2,4],[2,6,2,8],[3,1,3,4],[5,3,5,4],[5,6,5,7],[8,0,8,1],[8,2,8,3],[8,4,8,5],[8,6,8,7],[8,8,8,9],[11,0,11,1],[11,2,11,3],[11,4,11,5],[11,6,11,7],[11,8,11,9],[12,0,12,1],[12,2,12,3],[33,0,33,1],[33,2,33,3],[33,4,33,5],[33,6,33,7],[33,8,33,9],[16,0,16,1],[16,2,16,3],[16,4,16,5],[16,6,16,7],[16,8,16,9],[28,0,28,1],[28,2,28,3],[28,4,28,5],[28,6,28,7],[28,8,28,9],[30,0,30,1],[30,2,30,3],[30,4,30,5],[30,6,30,7],[30,8,30,9],[29,0,29,1],[29,2,29,3],[29,4,29,5],[29,6,29,7],[31,0,31,1],[31,2,31,3],[31,4,31,5],[31,6,31,7],[31,8,31,9],[32,0,32,1],[32,2,32,3],[32,4,32,5],[32,6,32,7],[32,8,32,9]]}
[{"$f":"+'Cover Page'!C39","v":2025}," Annual Reporting Performance Form 1"]
[]
[{"$f":"+'Cover Page'!B31","v":"Permit EPR/SP3409LC"},null,null,null,null,"Operator: ",{"$f":"+'Cover Page'!B37","v":"Veolia ES (UK) Ltd"}]
["Facility:",{"$f":"+'Cover Page'!B33:I33","v":"Ellesmere Port Incinerator"},null,null,null,"Form:","Performance 1"]
[]
["Reporting  Period from: ",null,null,"2025-01-01",null,"to:","2025-12-31"]
[]
[{"$f":"+A1","v":2025},"Annual Reporting of Waste Disposal and Recovery"]
["Waste Description",null,"Disposal Route(s)",null,"Disposal Tonnes",null,"Recovery Tonnes",null,"% / tonne of waste incinerated"]
["1) Hazardous Wastes"]
["APC Residues",null,0,null,0,null,0,null,{"$f":"IF((E11+G11)>0,(E11+G11)/'Operational Data'!$G$24, \"-\")","v":"-"}]
["IBA",null,1,null,3144.25,null,0,null,{"$f":"IF((E12+G12)>0,(E12+G12)/'Operational Data'!$G$24, \"-\")","v":4.7751209251820519E-2}]
["Filtercake",null,1,null,5030.5600000000004,null,0,null,{"$f":"IF((E13+G13)>0,(E13+G13)/'Operational Data'!$G$24, \"-\")","v":7.6398289962260724E-2}]
["Empty IBC's/Drums",null,1,null,0,null,20.51,null,{"$f":"IF((E14+G14)>0,(E14+G14)/'Operational Data'!$G$24, \"-\")","v":3.1148200739598917E-4}]
["Fluorescent Tubes",null,1,null,0,null,3.7999999999999999E-2,null,{"$f":"IF((E15+G15)>0,(E15+G15)/'Operational Data'!$G$24, \"-\")","v":5.7709976991943379E-7}]
["Oily Sludge/Bitumen",null,1,null,0.88,null,0,null,{"$f":"IF((E16+G16)>0,(E16+G16)/'Operational Data'!$G$24, \"-\")","v":1.3364415724450047E-5}]
["Lagging",null,1,null,5.12,null,0,null,{"$f":"IF((E17+G17)>0,(E17+G17)/'Operational Data'!$G$24, \"-\")","v":7.7756600578618459E-5}]
["Solids from Flue Gas",null,1,null,63.2,null,0,null,{"$f":"IF((E18+G18)>0,(E18+G18)/'Operational Data'!$G$24, \"-\")","v":9.5980803839232159E-4}]
["Total Hazardous Waste",null,null,null,{"$f":"SUM(E11:F18)","v":8244.01},null,{"$f":"SUM(G11:H18)","v":20.548000000000002},null,{"$f":"IF((E19+G19)>0,(E19+G19)/'Operational Data'!$G$24, \"-\")","v":0.12551248737594253}]
[]
["2) Non-Hazardous Wastes"]
["IBA",null,0,null,0,null,0,null,{"$f":"IF((E22+G22)>0,(E22+G22)/'Operational Data'!$G$24, \"-\")","v":"-"}]
["Ferrous Metal",null,1,null,0,null,42,null,{"$f":"IF((E23+G23)>0,(E23+G23)/'Operational Data'!$G$24, \"-\")","v":6.378471141214795E-4}]
["Process Water",null,0,null,0,null,0,null,{"$f":"IF((E24+G24)>0,(E24+G24)/'Operational Data'!$G$24, \"-\")","v":"-"}]
["Filtercake",null,1,null,465.8,null,0,null,{"$f":"IF((E25+G25)>0,(E25+G25)/'Operational Data'!$G$24, \"-\")","v":7.0740282323282179E-3}]
["Wooden Pallets",null,1,null,0,null,753.7,null,{"$f":"IF((E26+G26)>0,(E26+G26)/'Operational Data'!$G$24, \"-\")","v":1.1446318331270456E-2}]
["Empty IBC's/Drums",null,1,null,0,null,3.3,null,{"$f":"IF((E27+G27)>0,(E27+G27)/'Operational Data'!$G$24, \"-\")","v":5.0116558966687673E-5}]
["Refractory Rubble",null,1,null,55.5,null,0,null,{"$f":"IF((E28+G28)>0,(E28+G28)/'Operational Data'!$G$24, \"-\")","v":8.4286940080338364E-4}]
["Wood",null,1,null,0,null,30.26,null,{"$f":"IF((E29+G29)>0,(E29+G29)/'Operational Data'!$G$24, \"-\")","v":4.5955365888847549E-4}]
["Wood- Grade C",null,1,null,0,null,28.44,null,{"$f":"IF((E30+G30)>0,(E30+G30)/'Operational Data'!$G$24, \"-\")","v":4.3191361727654474E-4}]
["Plastics",null,1,null,0,null,1.36,null,{"$f":"IF((E31+G31)>0,(E31+G31)/'Operational Data'!$G$24, \"-\")","v":2.0654097028695529E-5}]
["Cardboard",null,1,null,0,null,25.57,null,{"$f":"IF((E32+G32)>0,(E32+G32)/'Operational Data'!$G$24, \"-\")","v":3.8832739781157692E-4}]
["General Industrial",null,1,null,0.64,null,0,null,{"$f":"IF((E33+G33)>0,(E33+G33)/'Operational Data'!$G$24, \"-\")","v":9.7195750723273074E-6}]
["Non Hazardous Industrial",null,1,null,0,null,29.45,null,{"$f":"IF((E34+G34)>0,(E34+G34)/'Operational Data'!$G$24, \"-\")","v":4.4725232168756123E-4}]
["Ferrous Metal from IBA",null,1,null,154.56,null,0,null,{"$f":"IF((E35+G35)>0,(E35+G35)/'Operational Data'!$G$24, \"-\")","v":2.3472773799670444E-3}]
["Total Non-Hazardous Waste",null,null,null,{"$f":"SUM(E22:F35)","v":676.5},null,{"$f":"SUM(G22:H35)","v":914.08000000000015},null,{"$f":"IF((E36+G36)>0,(E36+G36)/'Operational Data'!$G$24, \"-\")","v":2.4155877685222451E-2}]
["TOTAL WASTE",null,null,null,{"$f":"+E36+E19","v":8920.51},null,{"$f":"+G36+G19","v":934.62800000000016},null,{"$f":"IF((E37+G37)>0,(E37+G37)/'Operational Data'!$G$24, \"-\")","v":0.14966836506116499}]
[]
["Operator’s comments :"]
[]
[]
[]
[]
[{"$f":"+A1","v":2025},"Annual Reporting of Water and Other Raw Material Usage"]
["Raw Material",null,null,null,"Usage",null,"Unit","Specific Usage",null,"Unit"]
["Mains Water",null,null,null,{"$f":"+'Operational Data'!G43/1000","v":20236},null,"m3",{"$f":"IF(E46>0,E46/'Operational Data'!$G$24,\"-\")","v":0.307320814318149},null,"m3/te"]
["Total Water",null,null,null,{"$f":"+'Operational Data'!G44+'Operational Data'!G43/1000","v":229266236},null,"m3",{"$f":"IF(E47>0,E47/'Operational Data'!$G$24,\"-\")","v":3481.8287380498582},null,"m3/te"]
["Urea / Ammonia",null,null,null,{"$f":"+'Operational Data'!G45","v":0},null,"kg",{"$f":"IF(E48>0,E48/'Operational Data'!$G$24,\"-\")","v":"-"},null,"kg/te"]
["Activated Carbon",null,null,null,{"$f":"+'Operational Data'!G47","v":0},null,"kg",{"$f":"IF(E49>0,E49/'Operational Data'!$G$24,\"-\")","v":"-"},null,"kg/te"]
["Lime / hydrated lime / Sodium Bicarb.",null,null,null,{"$f":"+'Operational Data'!G48","v":2026580},null,"kg",{"$f":"IF(E50>0,E50/'Operational Data'!$G$24,\"-\")","v":30.777338203245428},null,"kg/te"]
[]
["Operator’s comments :"]
[]
[]
[]
[{"$f":"+A44","v":2025},"Annual Reporting of other performance indicators "]
["Parameter",null,"Results by Line"]
[null,null,"A1","A2","A3","A4","A5",null,"Turbine 1","Turbine 2"]
["Operating hours for the year, hours",null,7701.53]
["Number of periods of abnormal operation, qty.",null,2]
["Cumulative hours of abnormal operation for this year, hours",null,7]
[]
["Operator’s comments :"]
["Gowy water not included in water totals.\nAbstracted= 1507042m3 Discharged= 1421480m3"]
[]
[]
["Signed: ","J. Roberts",null,null,null,null,"Date:","2026-01-29"]

{"sheet":"Energy Form 1","index":5,"n_rows":29,"n_cols":8,"rows_kept":29,"cut":false,"hidden":false,"merged":[[15,0,15,2],[15,3,15,4],[15,6,15,8],[17,0,17,8],[18,0,24,8],[13,0,13,2],[13,3,13,4],[13,6,13,8],[14,0,14,2],[14,3,14,4],[14,6,14,8],[11,0,11,2],[11,3,11,4],[11,6,11,8],[12,0,12,2],[12,3,12,4],[12,6,12,8],[9,0,9,2],[9,3,9,4],[9,6,9,8],[10,0,10,2],[10,3,10,4],[10,6,10,8],[2,6,2,8],[4,1,4,4],[6,3,6,4],[6,6,6,7],[8,0,8,2],[8,3,8,4],[8,6,8,8]]}
[{"$f":"+'Cover Page'!C39","v":2025}," Annual Reporting of Energy Usage/Export"]
[]
[{"$f":"+'Cover Page'!B31","v":"Permit EPR/SP3409LC"},null,null,null,null,"Operator: ",{"$f":"+'Cover Page'!B37","v":"Veolia ES (UK) Ltd"}]
[]
["Facility:",{"$f":"+'Cover Page'!B33:I33","v":"Ellesmere Port Incinerator"},null,null,null,"Form:","Energy 1"]
[]
["Reporting  Period from: ",null,null,{"$f":"+'Perf. Form 1'!D6:E6","v":"2025-01-01"},null,"to:",{"$f":"+'Perf. Form 1'!G6:H6","v":"2025-12-31"}]
[]
["Energy Source",null,null,"Energy Usage",null,"Unit","Specific Usage (KWh/tonne incinerated"]
["Electricity Produced",null,null,{"$f":"+'Operational Data'!G27","v":0},null,"MWh",{"$f":"+'Operational Data'!H27","v":"-"}]
["Electricity Imported   ",null,null,{"$f":"+'Operational Data'!G29","v":0},null,"MWh",{"$f":"+'Operational Data'!H29","v":"-"}]
["Electricity Exported",null,null,{"$f":"+'Operational Data'!G28","v":0},null,"MWh",{"$f":"+'Operational Data'!H28","v":"-"}]
["Gas Oil",null,null,802.11,null,"tonnes"]
["Steam/hot water exported",null,null,{"$f":"+'Operational Data'!G31","v":0},null,"GWh",{"$f":"+'Operational Data'!H31","v":"-"}]
[]
[]
[]
["Operator’s comments :"]
["Gas oil usage split into 361.516 tonnes for support fuel and 440.60 tonnes for other onsite use i.e. yellow plant and fork lift."]
[]
[]
[]
[]
[]
[]
[]
[]
[]
["Signed: ","J Roberts",null,null,null,null,"Date:","2026-01-29"]

{"sheet":"Permit Compliance","index":6,"n_rows":30,"n_cols":12,"rows_kept":30,"cut":false,"hidden":false,"merged":[[24,1,24,2],[25,1,25,2],[26,0,26,8],[19,7,19,8],[19,1,19,2],[19,3,19,5],[21,3,21,5],[22,3,22,5],[23,3,23,5],[24,3,24,5],[25,3,25,5],[21,1,21,2],[8,11,20,11],[28,0,28,10],[18,0,18,10],[33,1,33,3],[33,4,33,6],[33,7,33,9],[29,1,29,3],[29,4,29,6],[29,7,29,9],[30,1,30,3],[30,4,30,6],[30,7,30,9],[22,1,22,2],[23,1,23,2],[14,0,14,1],[14,2,14,4],[34,1,34,3],[34,4,34,6],[34,7,34,9],[31,1,31,3],[31,4,31,6],[31,7,31,9],[32,1,32,3],[32,4,32,6],[32,7,32,9],[14,5,14,8],[15,0,15,1],[16,2,16,4],[16,5,16,8],[15,2,15,4],[15,5,15,8],[16,0,16,1],[7,0,7,1],[7,2,7,8],[8,0,8,1],[8,2,8,4],[8,5,8,8],[35,4,35,8],[9,0,9,1],[9,2,9,4],[9,5,9,8],[10,0,10,1],[10,2,10,4],[10,5,10,8],[11,0,11,1],[11,2,11,4],[11,5,11,8],[12,0,12,1],[12,2,12,4],[12,5,12,8],[13,0,13,1],[13,2,13,4],[13,5,13,8]]}
[{"$f":"+'Cover Page'!$B$29","v":"Annual Performance Report 2025"},null,null,null,{"$f":"+'Cover Page'!$B$33","v":"Ellesmere Port Incinerator"}]
[]
["Summary of Permit Compliance"]
[]
["Compliance with permit limits for continuously monitored pollutants"]
[]
["The plant met its emission limits as shown in the table below:"]
["Substance",null,"Percentage time compliant during operationNote 1",null,null,null,null,null,null,null,null,"Notes:"]
[null,null,"Half-hourly limit",null,null,"Daily limit",null,null,null,null,null,"Note 1: Please report to 2 decimal places, i.e. xx.xx%\n\nNote 2: Please enter into this table any permit non-compliances that the EA has given a CCS score for. Please also enter any other non-compliances which you have notified to the EA (e.g. ELV exceedances) but which have not yet been assessed by the EA. There is no need to enter any notifications which were subsequently assessed by the EA not to be permit breaches.  \n\nNote 3: Please enter information here (rather than just referencing the notifications that were sent to the EA) including where relevant the incineration line reference, pollutant and value of the measured result for any ELV exceedances.   \n\n"]
["Particulates",null,0.997,null,null,1]
["Oxides of nitrogen",null,0.99670000000000003,null,null,1]
["Sulphur dioxide",null,0.99860000000000004,null,null,1]
["Carbon monoxide",null,"\n99.60% 95% of 10-min averages",null,null,1]
["Total organic carbon",null,0.98750000000000004,null,null,1]
["Hydrogen chloride",null,0.99990000000000001,null,null,1]
["Hydrogen fluoride",null,1,null,null,1]
["Mercury",null,0.99980000000000002,null,null,1]
[]
["Summary of non-compliances under the permit Note 2"]
["Date","Summary of non-compliance Note 3",null,"Reason ",null,null,"Measures taken to prevent reoccurrence","CCS score if applicable*"]
[null,null,null,null,null,null,null,"Impact","Root cause"]
[]
[]
[]
[]
[]
["*If the Environment Agency (EA) has given a Compliance Classification Scheme (CCS) score due to a permit non-compliance it should be entered here (CCS4 = No impact; CCS3 = Minor impact; CCS2 = Significant impact; CCS1 = Major impact). If the EA has not yet assessed a non-compliance which you have notified to them, these columns should be left blank. Enter N/A if no score was given for the root cause.  "]
[]
["Summary of any complaints received and actions to taken to resolve them."]
["Date","Summary of complaint [including Line/Reference]",null,null,"Reason (including whether substantiated by the operator or the EA)",null,null,"Measures taken to prevent reoccurrence"]

{"sheet":"Improvements","index":7,"n_rows":38,"n_cols":5,"rows_kept":38,"cut":false,"hidden":false,"merged":[[37,0,37,8],[38,0,47,8],[4,0,4,8],[5,0,13,8],[15,0,15,8],[16,0,24,8],[26,0,26,8],[27,0,35,8]]}
[{"$f":"+'Cover Page'!$B$29","v":"Annual Performance Report 2025"},null,null,null,{"$f":"+'Cover Page'!$B$33","v":"Ellesmere Port Incinerator"}]
[]
["Summary of Plant Improvements"]
[]
["Summary of any efficiency improvements that have been completed within the year."]
["LED lighting upgrade- ongoing project to replace all site lighting with LED.\n\nCooling Tower efficiency project- project to look at the optimisation oof the site cooling towers including energy usage."]
[]
[]
[]
[]
[]
[]
[]
[]
[]
["Summary of any permit improvement conditions that have been completed within the year and the resulting environmental benefits."]
["Responses submitted in response to IC1, IC3, IC4, IC5, IC7, IC10, IC11, IC12, IC13a, IC14, IC15a."]
[]
[]
[]
[]
[]
[]
[]
[]
[]
["Summary of any changes to the plant or operating techniques which required a variation to the permit and a summary of the resulting environmental impact."]
["Permit variation submitted to include additional EWC codes to the list of wastes.  Also to formalise the use of DPR gel as an optimisation reagent for the slag/ash which was previously under a minor operational change letter."]
[]
[]
[]
[]
[]
[]
[]
[]
[]
["Summary of any other improvements made to the plant or planned to be made and a summary of the resulting environmental benefits."]

{"sheet":"Public Liasion","index":8,"n_rows":29,"n_cols":5,"rows_kept":29,"cut":false,"hidden":false,"merged":[[23,0,24,1],[23,2,24,8],[25,0,26,1],[25,2,26,8],[28,0,28,8],[17,0,18,1],[17,2,18,8],[19,0,20,1],[19,2,20,8],[21,0,22,1],[21,2,22,8],[16,0,16,1],[16,2,16,8],[5,0,5,1],[5,2,5,8],[6,0,7,1],[6,2,7,8],[8,0,9,1],[8,2,9,8],[10,0,11,1],[10,2,11,8],[12,0,13,1],[12,2,13,8],[15,0,15,8]]}
[{"$f":"+'Cover Page'!$B$29","v":"Annual Performance Report 2025"},null,null,null,{"$f":"+'Cover Page'!$B$33","v":"Ellesmere Port Incinerator"}]
[]
["Details of Public & Stakeholder Liaison"]
[]
["Summary of events held during the reporting year."]
["Date",null,"Description"]
["2025-03-20",null,"DESNZ/Veolia- Future of Hazardous Waste Roundtable"]
[]
["28/0/2025",null,"Children Challenging Industry- Initial Site Tour"]
[]
["2025-09-22",null,"Children Challenging Industry- Training Day"]
[]
["2025-09-24",null,"DOMINO group meeting"]
[]
[]
["List of events planned for next year"]
["Date",null,"Description"]
[]
[]
[]
[]
[]
[]
[]
[]
[]
[]
[]
["If you wish to be involved in the public liaison programme, please contact _________________"]

{"sheet":"CO2 N2O","index":9,"n_rows":25,"n_cols":6,"rows_kept":25,"cut":false,"hidden":false,"merged":[[6,5,9,5],[22,2,22,3],[25,1,25,3],[16,2,16,3],[4,0,4,3],[9,0,9,3],[17,0,17,3],[13,0,13,3],[12,0,12,1],[8,2,8,3],[11,2,11,3],[19,2,19,3]]}
[{"$f":"+'Cover Page'!$B$29","v":"Annual Performance Report 2025"},null,{"$f":"+'Cover Page'!$B$33","v":"Ellesmere Port Incinerator"}]
[]
["Carbon dioxide emissions and biogenic content of waste inputs",null,null,null,null,"Notes:"]
[]
["Carbon dioxide emissions (all types of plant)"]
[null,"Annual mass of carbon dioxide released","tonnes ",69568]
[null,"Annual mass of carbon dioxide released per tonne of waste burned","t CO2 / t waste ",1.06,null,"Note 1: All permits require operators to continuously monitor CO2 to EN14181 and flow to BS EN 16911-2 (unless otherwise agreed in writing). Operators must therefore use the results from these instruments to calculate their annual CO2 emissions. Where an operator does not have a flow meter calibrated to BS EN 16911-2, the averaged flow measurement from that year's periodic monitoring can be used instead. If the plant does not have calibrated CO2 CEMS, a suitably justified emissions factor can be used. \n\n"]
[null,"Annual mass of carbon dioxide released per MWh of energy exported","t CO2 / MWh export ",0]
[null,"Description of how annual carbon dioxide mass emission has been calculated. \nSee Note 1","CEM's"]
["Nitrous oxide emissions (only plants which use ammonia or urea to abate NOx emissions)"]
[null,"Annual mass emissions of nitrous oxide","tonnes N2O",1.1100000000000001]
[null,"Description of how annual nitrous oxide mass emission has been calculated\nSee Note 2","CEM's",null,null,"Note 2: All permits require operators to continuously monitor N2O to EN14181 and flow to BS EN 16911-2, unless otherwise agreed in writing. Operators must therefore use the results from these instruments to calculate their annual N2O emissions. Where an operator does not have a flow meter calibrated to BS EN 16911-2, the averaged flow measurement from periodic monitoring can be used instead. If the plant does not have calibrated N2O CEMS, data from periodic monitoring or a suitably justified emissions factor can be used instead."]
["Total annual carbon dioxide + nitrous oxide emissions. \nSee Note 3. ",null,"tonnes CO2e",{"$f":"D6+(D11*265)","v":69862.149999999994},null,"Note 3: Total annual carbon dioxide and nitrous oxide emissions reported as carbon dioxide equivalent where 1 tonne nitrous oxide is equivalent to 265 tonnes carbon dioxide."]
["Biogenic CO2 emissions (See Note 4)",null,null,null,null,"Note 4: Only plants combusting residual municipal waste, refuse derived fuel or solid recovered fuel need complete this section. "]
[null,"Percentage of total carbon dioxide emissions arising from biogenic waste","%",0]
[null,"No. of measurements undertaken","Number",0]
[null,"Description of how percentage biogenic carbon dioxide emissions have been measured or calculated.\nSee Note 5","N/A",null,null,"Note 5: The results from C14 sampling should be used if this is carried out at the plant (either via an installed sampler or from spot samples).  \nOtherwise, as an approximation (and in lieu of any more accurate metrics which may be developed in future), the measured or estimated biogenic fraction by net calorific value (see Note 6) can be assumed to be the same as the biogenic CO2 fraction of the total CO2 emissions from the plant. "]
["Biogenic fraction of waste feedstock (See Note 4)"]
[null,"Yearly average biogenic percentage of the waste by net calorific value (NCV)","%",0]
[null,"Description of how biogenic percentage (by NCV) has been calculated or estimated. \nSee Note 6",null,null,null,"Note 6: If C14 sampling is carried out at the plant, the methodology set out in the embedded document entitled \"Renewable Energy Association Energy Content of Fuels - Description of Method\" embedded below can be used to calculate the biogenic percentage by net calorific value. Otherwise, data from waste sampling or BIOMA software can be used; or if none of these are available, an estimated figure with justification or a figure assumed on the basis of up-to-date industry data can be used. "]
[null,"Yearly average biogenic percentage of the waste by mass","%",0]
[null,"If waste sampling undertaken, no. of samples used to ascertain average biogenic percentages above","Number"]
[null,"Description of how biogenic percentage (by mass) has been calculated or estimated. \nSee Note 7",null,null,null,"Note 7: Where available, data from waste sampling should be used; otherwise, an estimated figure with justification can be used, or a figure assumed on the basis of up-to-date industry data. "]
[]
[null,"Comments:"]

{"sheet":"Residues","index":10,"n_rows":62,"n_cols":11,"rows_kept":62,"cut":false,"hidden":false,"merged":[[61,0,66,6],[57,3,57,4],[60,0,60,6],[52,0,53,1],[54,0,54,1],[55,0,55,1],[56,0,56,1],[57,0,57,1],[54,3,54,4],[55,3,55,4],[54,5,54,6],[55,5,55,6],[56,5,56,6],[57,5,57,6],[58,0,58,6],[45,0,46,1],[45,2,46,6],[47,0,48,1],[47,2,48,6],[56,3,56,4],[52,2,53,2],[53,3,53,4],[53,5,53,6],[52,3,52,6],[51,0,51,6],[4,0,25,8],[4,10,13,13],[41,0,42,1],[41,2,42,6],[43,0,44,1],[43,2,44,6],[37,0,37,6],[38,0,38,1],[38,2,38,6],[39,0,40,1],[39,2,40,6],[30,0,35,6]]}
[{"$f":"+'Cover Page'!$B$29","v":"Annual Performance Report 2025"},null,null,null,{"$f":"+'Cover Page'!$B$33","v":"Ellesmere Port Incinerator"}]
[]
["Summary of Residue Handling for the reporting year"]
[]
["Plant operating mainly in ashing mode so all slag/ash residues classified as hazardous and disposed of at hazardous landfill.  Filtercake is classified on a skip by skip basis and is sent to hazardous or non hazardous landfill depending on classification.  \n\n3144 tes of IBA produced in 2025.\n5031 tes of hazardous filter cake.\n466 tes of non hazardous filter cake.\n",null,null,null,null,null,null,null,null,null,"Include in here a summary of residue handling regimes and destinations "]
[]
[]
[]
[]
[]
[]
[]
[]
[]
[]
[]
[]
[]
[]
[]
[]
[]
[]
[]
[]
[]
[]
["Residue Quality Monitoring Requirements"]
[]
["Summary of monitoring undertaken and compliance"]
["Filter cake- samples taken from every drop and analysed at onsite laboratory for classification.  Monthly composite samples are sent to an external accredited laboratory as a QC check.  Regular WAC analysis is carried out to confirm compliance with landfill acceptance requirements.\nSlag/ash- all residues currently being moved as hazardous to ensure compliance when moving between campaigns.  Monthly composite samples sent to external laboratory for QC check.   Regular WAC analysis is carried out to confirm compliance with landfill acceptance requirements."]
[]
[]
[]
[]
[]
[]
["Commentary on any specific events"]
["Date & Event",null,"Description"]
[]
[]
[]
[]
[]
[]
[]
[]
[]
[]
[]
[]
["Residue Quality Monitoring Results"]
["Parameter (unit) ",null,"Limit*","Normal Operation "]
[null,null,null,"Bottom ash  ",null,"APC Residues"]
["Loss on Ignition (average %)",null,"<5%",2.83]
["Total Organic Carbon (average %)",null,"<3%",0.32]
["No. of Assessments Undertaken",null,"---",12]
["No. of Hazardous Results",null,"---",0]
["* The permit will specify a limit of either 5% loss on ignition or 3% total organic carbon. If both are measured anyway, please enter the results here, even where the limit does not apply. "]
[]
["Comments :"]
["Q4  composite sample used for this report."]

{"sheet":"Water","index":11,"n_rows":32,"n_cols":9,"rows_kept":32,"cut":false,"hidden":false,"merged":[[24,0,24,2],[24,3,24,4],[25,0,25,2],[25,3,25,4],[29,0,29,2],[29,3,29,4],[26,0,26,2],[26,3,26,4],[27,0,27,2],[27,3,27,4],[28,0,28,2],[28,3,28,4],[16,2,17,8],[18,0,19,1],[18,2,19,8],[23,0,23,2],[23,3,23,4],[30,0,30,2],[30,3,30,4],[31,0,31,2],[31,3,31,4],[5,0,6,8],[7,0,8,8],[9,0,10,8],[12,0,12,8],[13,0,13,1],[13,2,13,8],[21,0,21,8],[22,0,22,2],[22,3,22,4],[14,0,15,1],[14,2,15,8],[16,0,17,1]]}
[{"$f":"+'Cover Page'!$B$29","v":"Annual Performance Report 2025"},null,null,null,{"$f":"+'Cover Page'!$B$33","v":"Ellesmere Port Incinerator"}]
[]
["Emissions to Water"]
[]
["Summary of monitoring undertaken and compliance"]
["daily samples taken from autosamplers for influent and effluent and analysed at in house laboratory.  Monthly composite sent to externa laboratory as a QC sample."]
[]
[]
[]
[]
[]
[]
["Commentary on any specific events"]
["Date & Event",null,"Description"]
[]
[]
[]
[]
[]
[]
[]
["Emissions to Water / Sewer"]
["Parameter",null,null,"Monitoring Frequency",null,"Limit","Target","Max.","Average"]
["Arsenic",null,null,"Daily",null,0.05,0.95,0.22,0.01]
["Cadmium",null,null,"Daily",null,0.03,0.95,1.2999999999999999E-2,1E-3]
["Chromium",null,null,"Daily",null,0.1,0.95,0.13900000000000001,3.0000000000000001E-3]
["Copper",null,null,"Daily",null,0.15,0.95,1.4850000000000001,7.6999999999999999E-2]
["Nickel",null,null,"Daily",null,0.15,0.95,0.13,2.1000000000000001E-2]
["Lead",null,null,"Daily",null,0.06,0.95,0.73499999999999999,1.2E-2]
["Antimony",null,null,"Daily",null,0.9,0.95,2.052,0.253]
["Thallium",null,null,"Daily",null,0.03,0.95,3.2000000000000001E-2,1E-3]
["Zinc",null,null,"Daily",null,0.5,0.95,2.835,0.14099999999999999]

{"sheet":"Air (periodic)","index":12,"n_rows":39,"n_cols":11,"rows_kept":39,"cut":false,"hidden":false,"merged":[[13,10,14,12],[15,10,16,10],[15,11,16,11],[15,12,16,12],[18,3,18,4],[13,3,13,4],[14,3,14,4],[15,3,15,4],[16,3,16,4],[17,3,17,4],[21,3,21,4],[22,3,22,4],[23,3,23,4],[24,3,24,4],[31,3,31,4],[25,3,25,4],[26,3,26,4],[28,3,28,4],[38,0,38,9],[19,0,19,1],[20,0,20,1],[21,0,21,1],[34,3,34,4],[35,3,35,4],[33,0,33,1],[34,0,34,1],[35,0,35,1],[36,0,36,1],[24,0,24,1],[32,3,32,4],[27,3,27,4],[33,3,33,4],[19,3,19,4],[20,3,20,4],[39,0,40,9],[25,0,25,1],[26,0,26,1],[22,0,22,1],[23,0,23,1],[37,0,37,1],[27,0,27,1],[28,0,28,1],[29,0,29,1],[30,0,30,1],[31,0,31,1],[32,0,32,1],[37,3,37,4],[29,3,29,4],[30,3,30,4],[36,3,36,4],[16,0,16,1],[17,0,17,1],[18,0,18,1],[13,0,13,1],[14,0,14,1],[15,0,15,1],[12,0,12,1],[11,3,11,4],[12,3,12,4],[9,0,10,1],[9,5,9,9],[9,3,10,4],[9,2,10,2],[5,10,8,13],[9,10,11,13],[8,0,8,9],[5,0,6,9],[11,0,11,1]]}
[{"$f":"+'Cover Page'!$B$29","v":"Annual Performance Report 2025"},null,null,null,{"$f":"+'Cover Page'!$B$33","v":"Ellesmere Port Incinerator"}]
[]
["Emissions to Air (periodically monitored)"]
[]
["Summary of monitoring undertaken, standards used and compliance",null,null,null,null,null,null,null,null,null,"Notes:"]
[null,null,null,null,null,null,null,null,null,null,"Template may require adjustment for any bespoke monitoring requirements of permit - please also check that all default ELV values, reference periods and the stated oxygen reference value match those for your plant, and edit if necessary!"]
[]
[]
["Results of emissions to air that are periodically monitored - oxygen reference 11% "]
["Substance",null,"Ref. Period","Emission Limit Value",null,"Average",null,null,null,null,"User to add additional tables as necessary, depending on whether quarterly or bi-annual reporting is required for the compliance year"]
[null,null,null,null,null,"A1","A2","A3","A4","A5"]
["Hydrogen fluoride",null,"1 hr","1 mg/m3",null,0.69]
["Cd and Tl and their compounds",null,"0.5-8hrs","0.02 mg/m3",null,"<0.0014"]
["Hg and its compounds",null,"0.5-8hrs","0.02 mg/m3",null,8.3999999999999995E-3]
["Sb, As, Pb, Cr, Co, Cu, Mn, Ni, V and their compounds",null,"0.5-8hrs","0.3 mg/m3",null,7.5899999999999995E-2]
["Dioxins & Furans (I-TEQ)",null,"6-8hrs","0.06 ng/m3",null,2.2000000000000001E-3]
["PCBs (WHO-TEQ Humans / Mammals)",null,"6-8hrs","None set ng/m3",null,6.8199999999999999E-4]
["PCBs (WHO-TEQ Fish)",null,"6-8hrs","None set ng/m3",null,3.6000000000000001E-5]
["PCBs (WHO-TEQ Birds)",null,"6-8hrs","None set ng/m3",null,2.0560000000000001E-3]
["Dioxins & Furans (WHO-TEQ Humans / Mammals)",null,"6-8hrs","None set ng/m3",null,1.8E-3]
["Dioxins & Furans (WHO-TEQ Fish)",null,"6-8hrs","None set ng/m3",null,2.3E-3]
["Dioxins & Furans (WHO-TEQ Birds)",null,"6-8hrs","None set ng/m3",null,3.5000000000000001E-3]
["Anthanthrene",null,"6-8hrs","None set µg/m3",null,"<0.002 "]
["Benzo(a)anthracene",null,"6-8hrs","None set µg/m3",null,"<0.002"]
["Benzo(a)pyrene",null,"6-8hrs","None set µg/m3",null,"<0.002"]
["Benzo(b)fluoranthene",null,"6-8hrs","None set µg/m3",null,"<0.002"]
["Benzo(b)naptho(2,1-d) thiophene",null,"6-8hrs","None set µg/m3",null,"<0.002"]
["Benzo(c)phenanthrene",null,"6-8hrs","None set µg/m3",null,"<0.002"]
["Benzo(ghi)perylene",null,"6-8hrs","None set µg/m3",null,"<0.002"]
["Benzo(k)fluoranthene",null,"6-8hrs","None set µg/m3",null,"<0.002"]
["Cholanthrene",null,"6-8hrs","None set µg/m3",null,"<0.002"]
["Chrysene",null,"6-8hrs","None set µg/m3",null,4.0000000000000001E-3]
["Cyclopenta(cd)pyrene",null,"6-8hrs","None set µg/m3",null,"<0.002"]
["Dibenzo(ai)pyrene",null,"6-8hrs","None set µg/m3",null,"<0.002"]
["Dibenzo(ah)anthracene",null,"6-8hrs","None set µg/m3",null,"<0.002"]
["Fluoranthene",null,"6-8hrs","None set µg/m3",null,4.2000000000000003E-2]
["Indeno(123-cd) pyrene",null,"6-8hrs","None set µg/m3",null,"<0.002"]
["Naphthalene",null,"6-8hrs","None set µg/m3",null,16.100000000000001]
["Comments :"]

{"sheet":"Air (CEMS)","index":13,"n_rows":29,"n_cols":14,"rows_kept":29,"cut":false,"hidden":false,"merged":[[29,0,30,12],[13,0,14,0],[5,0,6,12],[7,0,8,12],[10,0,10,12],[11,0,12,0],[11,2,12,2],[11,1,12,1],[11,3,11,4],[11,5,11,6],[11,7,11,8],[11,9,11,10],[11,11,11,12],[14,13,15,13],[14,14,15,14],[14,15,15,15],[12,13,13,15],[27,0,27,12]]}
[{"$f":"+'Cover Page'!$B$29","v":"Annual Performance Report 2025"},null,null,null,null,null,null,null,{"$f":"+'Cover Page'!$B$33","v":"Ellesmere Port Incinerator"}]
[]
["Emissions to Air (continuously monitored)"]
[null,null,null,null,null,null,null,null,null,null,null,null,null,"Notes:"]
["Summary of monitoring undertaken, standards used and compliance",null,null,null,null,null,null,null,null,null,null,null,null,"Template may require adjustment for any bespoke monitoring requirements of permit"]
["1/2 hourly mean is calculated as mean of max 1/2 hour averages so is a worst case figure.  This will be updated in our calculation sheets moving forawrds.",null,null,null,null,null,null,null,null,null,null,null,null,"Please check that all default ELV values match those for your plant and edit if necessary!"]
[null,null,null,null,null,null,null,null,null,null,null,null,null,"Report to 1 decimal place"]
[]
[]
[]
["Results of emissions to air that are continuously monitored (maximum and average values for each line) - oxygen reference 11%"]
["Substance","Reference Period","Emission Limit Value","A1",null,"A2",null,"A3",null,"A4",null,"A5"]
[null,null,null,"Max.","Avg.","Max.","Avg.","Max.","Avg.","Max.","Avg.","Max.","Avg."]
["Oxides of nitrogen","Daily mean","180 mg/m3 ",133,90]
[null,"½ hourly mean","180 mg/m3 ",349,137]
["Particulates","Daily mean","5 mg/m3",7.09,1.03]
[null,"½ hourly mean","5 mg/m3 ",152.91,3.46]
["Total Organic Carbon ","Daily mean","10 mg/m3 ",3.95,0.7]
[null,"½ hourly mean","10 mg/m3 ",82.86,11.14]
["Hydrogen chloride ","Daily mean","8 mg/m3 ",1.07,0.22]
[null,"½ hourly mean","8 mg/m3 ",10.61,0.7]
["Sulphur dioxide","Daily mean","40 mg/m3 ",262,4.18]
[null,"½ hourly mean","40 mg/m3 ",670.63,11.94]
["Carbon monoxide ","Daily mean","50 mg/m3 ",21.37,5.35]
[null,"½ hourly mean *","100 mg/m3 *"]
[null,"95%ile 10-min avg *","150 mg/m3 *",433,143.13999999999999]
[" Ammonia","Daily mean","15 mg/m3 ",5.0599999999999996,0.59]
["* = delete as appropriate, depending on whether your plant has half-hourly or 10-min CO ELVs\n"]
["Comments :"]

{"sheet":"HCl","index":14,"n_rows":79,"n_cols":17,"rows_kept":79,"cut":false,"hidden":false,"merged":[[12,16,15,18],[51,9,63,9],[66,9,78,9],[4,9,4,14],[4,1,4,3],[4,4,4,6],[48,0,51,6],[47,0,47,6],[6,9,18,9],[21,9,33,9],[36,9,48,9],[3,16,7,18],[9,16,11,18],[18,4,18,6]]}
[{"$f":"+'Cover Page'!$B$29","v":"Annual Performance Report 2025"},null,null,null,{"$f":"+'Cover Page'!$B$33","v":"Ellesmere Port Incinerator"}]
[]
["Monitoring of Hydrogen Chloride emissions",null,null,"Whole Installation",null,null,"See  Notes in Cell Q3",null,null,{"$f":"+A3","v":"Monitoring of Hydrogen Chloride emissions"},null,null,null,"Per Combustion Line",null,null,"Notes:"]
[null,null,null,null,null,null,null,null,null,null,null,null,null,null,null,null,"User to add logic to complete Whole installation, Table A5:G18. From the data in Per Combustion Line, Table J6:O79, subject to No. of lines installed"]
[{"$f":"+'Cover Page'!C39","v":2025},"1/2 Hourly Reference Periods",null,null,"Daily Reference Periods"]
["mg/Nm3","1/2 hourly HCl ELV","Monthly mean of half-hourly averages","Highest half- hourly average","Daily HCl ELV","Monthly mean of  daily averages","Highest daily average",null,null,{"$f":"+A5","v":2025},"mg/Nm3","Monthly mean of half-hourly averages","Highest half- hourly average","Monthly mean of  daily averages","Highest daily average"]
["Jan",8,{"$f":"L7","v":0.24},{"$f":"M7","v":1.7},8,{"$f":"N7","v":0.22},{"$f":"O7","v":0.38},null,null,"A1","Jan",0.24,1.7,0.22,0.38]
["Feb",8,{"$f":"L8","v":0.25},{"$f":"M8","v":10.4},8,{"$f":"N8","v":0.22},{"$f":"O8","v":0.46},null,null,null,"Feb",0.25,10.4,0.22,0.46]
["Mar",8,0.25,2.2999999999999998,8,0.22,1.07,null,null,null,"Mar",0.25,2.2999999999999998,0.22,1.07,null,"Whole Installation table A5:G18:"]
["Apr",8,0.3,2.7,8,0.19,0.64,null,null,null,"Apr",0.3,2.7,0.19,0.64,null,"Mean: for 1/2 hourly and daily periods calculate mean of values across all operational combustion lines for the month"]
["May",8,0.3,2,8,0.24,0.4,null,null,null,"May",0.3,2,0.24,0.4]
["Jun",8,0.2,1.3,8,0.19,0.34,null,null,null,"Jun",0.2,1.3,0.19,0.34]
["Jul",8,0.2,1.1000000000000001,8,0.18,0.3,null,null,null,"Jul",0.2,1.1000000000000001,0.18,0.3,null,"Maximum: for 1/2 hourly and daily periods use the highest value across all operational combustion lines for the month"]
["Aug",8,0.3,0.8,8,0.28000000000000003,1.21,null,null,null,"Aug",0.3,0.8,0.28000000000000003,1.21]
["Sep",8,0.4,1.7,8,0.17,0.61,null,null,null,"Sep",0.4,1.7,0.17,0.61]
["Oct",8,0.3,1.3,8,0.25,0.48,null,null,null,"Oct",0.3,1.3,0.25,0.48]
["Nov",8,0.3,1.4,8,0.24,0.35,null,null,null,"Nov",0.3,1.4,0.24,0.35]
["Dec",8,0.3,1.2,8,0.23,0.46,null,null,null,"Dec",0.3,1.2,0.23,0.46]
[null,null,null,null,null,null,null,null,null,null,"Annual",{"$f":"AVERAGE(L7:L18)","v":0.27833333333333327},{"$f":"MAX(M7:M18)","v":10.4},{"$f":"AVERAGE(N7:N18)","v":0.2191666666666667},{"$f":"MAX(O7:O18)","v":1.21}]
[]
[null,null,null,null,null,null,null,null,null,{"$f":"+A5","v":2025},"mg/Nm3","Monthly mean of half-hourly averages","Highest half- hourly average","Monthly mean of  daily averages","Highest daily average"]
[null,null,null,null,null,null,null,null,null,"A2","Jan"]
[null,null,null,null,null,null,null,null,null,null,"Feb"]
[null,null,null,null,null,null,null,null,null,null,"Mar"]
[null,null,null,null,null,null,null,null,null,null,"Apr"]
[null,null,null,null,null,null,null,null,null,null,"May"]
[null,null,null,null,null,null,null,null,null,null,"Jun"]
[null,null,null,null,null,null,null,null,null,null,"Jul"]
[null,null,null,null,null,null,null,null,null,null,"Aug"]
[null,null,null,null,null,null,null,null,null,null,"Sep"]
[null,null,null,null,null,null,null,null,null,null,"Oct"]
[null,null,null,null,null,null,null,null,null,null,"Nov"]
[null,null,null,null,null,null,null,null,null,null,"Dec"]
[null,null,null,null,null,null,null,null,null,null,"Annual",{"$f":"AVERAGE(L22:L33)","v":{"$error":"#DIV/0!"}},{"$f":"MAX(M22:M33)","v":0},{"$f":"AVERAGE(N22:N33)","v":{"$error":"#DIV/0!"}},{"$f":"MAX(O22:O33)","v":0}]
[]
[null,null,null,null,null,null,null,null,null,{"$f":"+A5","v":2025},"mg/Nm3","Monthly mean of half-hourly averages","Highest half- hourly average","Monthly mean of  daily averages","Highest daily average"]
[null,null,null,null,null,null,null,null,null,"A3","Jan"]
[null,null,null,null,null,null,null,null,null,null,"Feb"]
[null,null,null,null,null,null,null,null,null,null,"Mar"]
[null,null,null,null,null,null,null,null,null,null,"Apr"]
[null,null,null,null,null,null,null,null,null,null,"May"]
[null,null,null,null,null,null,null,null,null,null,"Jun"]
[null,null,null,null,null,null,null,null,null,null,"Jul"]
[null,null,null,null,null,null,null,null,null,null,"Aug"]
[null,null,null,null,null,null,null,null,null,null,"Sep"]
[null,null,null,null,null,null,null,null,null,null,"Oct"]
[null,null,null,null,null,null,null,null,null,null,"Nov"]
["Comments :",null,null,null,null,null,null,null,null,null,"Dec"]
[null,null,null,null,null,null,null,null,null,null,"Annual",{"$f":"AVERAGE(L37:L48)","v":{"$error":"#DIV/0!"}},{"$f":"MAX(M37:M48)","v":0},{"$f":"AVERAGE(N37:N48)","v":{"$error":"#DIV/0!"}},{"$f":"MAX(O37:O48)","v":0}]
[]
[null,null,null,null,null,null,null,null,null,{"$f":"+A5","v":2025},"mg/Nm3","Monthly mean of half-hourly averages","Highest half- hourly average","Monthly mean of  daily averages","Highest daily average"]
[null,null,null,null,null,null,null,null,null,"A4","Jan"]
[null,null,null,null,null,null,null,null,null,null,"Feb"]
[null,null,null,null,null,null,null,null,null,null,"Mar"]
[null,null,null,null,null,null,null,null,null,null,"Apr"]
[null,null,null,null,null,null,null,null,null,null,"May"]
[null,null,null,null,null,null,null,null,null,null,"Jun"]
[null,null,null,null,null,null,null,null,null,null,"Jul"]
[null,null,null,null,null,null,null,null,null,null,"Aug"]
[null,null,null,null,null,null,null,null,null,null,"Sep"]
[null,null,null,null,null,null,null,null,null,null,"Oct"]
[null,null,null,null,null,null,null,null,null,null,"Nov"]
[null,null,null,null,null,null,null,null,null,null,"Dec"]
[null,null,null,null,null,null,null,null,null,null,"Annual",{"$f":"AVERAGE(L52:L63)","v":{"$error":"#DIV/0!"}},{"$f":"MAX(M52:M63)","v":0},{"$f":"AVERAGE(N52:N63)","v":{"$error":"#DIV/0!"}},{"$f":"MAX(O52:O63)","v":0}]
[]
[null,null,null,null,null,null,null,null,null,{"$f":"+A5","v":2025},"mg/Nm3","Monthly mean of half-hourly averages","Highest half- hourly average","Monthly mean of  daily averages","Highest daily average"]
[null,null,null,null,null,null,null,null,null,"A5","Jan"]
[null,null,null,null,null,null,null,null,null,null,"Feb"]
[null,null,null,null,null,null,null,null,null,null,"Mar"]
[null,null,null,null,null,null,null,null,null,null,"Apr"]
[null,null,null,null,null,null,null,null,null,null,"May"]
[null,null,null,null,null,null,null,null,null,null,"Jun"]
[null,null,null,null,null,null,null,null,null,null,"Jul"]
[null,null,null,null,null,null,null,null,null,null,"Aug"]
[null,null,null,null,null,null,null,null,null,null,"Sep"]
[null,null,null,null,null,null,null,null,null,null,"Oct"]
[null,null,null,null,null,null,null,null,null,null,"Nov"]
[null,null,null,null,null,null,null,null,null,null,"Dec"]
[null,null,null,null,null,null,null,null,null,null,"Annual",{"$f":"AVERAGE(L67:L78)","v":{"$error":"#DIV/0!"}},{"$f":"MAX(M67:M78)","v":0},{"$f":"AVERAGE(N67:N78)","v":{"$error":"#DIV/0!"}},{"$f":"MAX(O67:O78)","v":0}]

{"sheet":"SO2","index":15,"n_rows":79,"n_cols":17,"rows_kept":79,"cut":false,"hidden":false,"merged":[[3,16,7,18],[9,16,11,18],[12,16,15,18],[66,9,78,9],[4,1,4,3],[4,4,4,6],[4,9,4,14],[6,9,18,9],[21,9,33,9],[36,9,48,9],[47,0,47,6],[48,0,51,6],[51,9,63,9],[18,4,18,6]]}
[{"$f":"+'Cover Page'!$B$29","v":"Annual Performance Report 2025"},null,null,null,{"$f":"+'Cover Page'!$B$33","v":"Ellesmere Port Incinerator"}]
[]
["Monitoring of Sulphur dioxide emissions",null,null,"Whole Installation",null,null,"See  Notes in Cell Q3",null,null,{"$f":"+A3","v":"Monitoring of Sulphur dioxide emissions"},null,null,null,"Per Combustion Line",null,null,"Notes:"]
[null,null,null,null,null,null,null,null,null,null,null,null,null,null,null,null,"User to add logic to complete Whole installation, Table A5:G18. From the data in Per Combustion Line, Table J6:O79, subject to No. of lines installed"]
[{"$f":"+'Cover Page'!C39","v":2025},"1/2 Hourly Reference Periods",null,null,"Daily Reference Periods"]
["mg/Nm3","1/2 hourly SO2 ELV","Monthly mean of half-hourly averages","Highest half- hourly average","Daily SO2 ELV","Monthly mean of  daily averages","Highest daily average",null,null,{"$f":"+A5","v":2025},"mg/Nm3","Monthly mean of half-hourly averages","Highest half- hourly average","Monthly mean of  daily averages","Highest daily average"]
["Jan",40,{"$f":"L7","v":3.42},{"$f":"M7","v":6.2},40,{"$f":"N7","v":3.01},{"$f":"O7","v":3.57},null,null,"A1","Jan",3.42,6.2,3.01,3.57]
["Feb",40,{"$f":"L8","v":3.58},{"$f":"M8","v":250.2},40,{"$f":"N8","v":3.24},{"$f":"O8","v":13.1},null,null,null,"Feb",3.58,250.2,3.24,13.1]
["Mar",40,3.19,10.9,40,2.82,3.25,null,null,null,"Mar",3.19,10.9,2.82,3.25,null,"Whole Installation table A5:G18:"]
["Apr",40,2.9,26.5,40,1.89,3.91,null,null,null,"Apr",2.9,26.5,1.89,3.91,null,"Mean: for 1/2 hourly and daily periods calculate mean of values across all operational combustion lines for the month"]
["May",40,2.9,47.8,40,2.61,4.9400000000000004,null,null,null,"May",2.9,47.8,2.61,4.9400000000000004]
["Jun",40,2.9,55.6,40,2.48,3.95,null,null,null,"Jun",2.9,55.6,2.48,3.95]
["Jul",40,2.9,16.100000000000001,40,2.5099999999999998,3.51,null,null,null,"Jul",2.9,16.100000000000001,2.5099999999999998,3.51,null,"Maximum: for 1/2 hourly and daily periods use the highest value across all operational combustion lines for the month"]
["Aug",40,6,97.8,40,5.6,10.25,null,null,null,"Aug",6,97.8,5.6,10.25]
["Sep",40,9.6,518.4,40,4.34,22.21,null,null,null,"Sep",9.6,518.4,4.34,22.21]
["Oct",40,6.5,78.5,40,4.7699999999999996,9.2799999999999994,null,null,null,"Oct",6.5,78.5,4.7699999999999996,9.2799999999999994]
["Nov",40,5.0999999999999996,66.900000000000006,40,4.41,6.38,null,null,null,"Nov",5.0999999999999996,66.900000000000006,4.41,6.38]
["Dec",40,5.3,70.900000000000006,40,3.89,6.63,null,null,null,"Dec",5.3,70.900000000000006,3.89,6.63]
[null,null,null,null,null,null,null,null,null,null,"Annual",{"$f":"AVERAGE(L7:L18)","v":4.5241666666666669},{"$f":"MAX(M7:M18)","v":518.4},{"$f":"AVERAGE(N7:N18)","v":3.4641666666666673},{"$f":"MAX(O7:O18)","v":22.21}]
[]
[null,null,null,null,null,null,null,null,null,{"$f":"+A5","v":2025},"mg/Nm3","Monthly mean of half-hourly averages","Highest half- hourly average","Monthly mean of  daily averages","Highest daily average"]
[null,null,null,null,null,null,null,null,null,"A2","Jan"]
[null,null,null,null,null,null,null,null,null,null,"Feb"]
[null,null,null,null,null,null,null,null,null,null,"Mar"]
[null,null,null,null,null,null,null,null,null,null,"Apr"]
[null,null,null,null,null,null,null,null,null,null,"May"]
[null,null,null,null,null,null,null,null,null,null,"Jun"]
[null,null,null,null,null,null,null,null,null,null,"Jul"]
[null,null,null,null,null,null,null,null,null,null,"Aug"]
[null,null,null,null,null,null,null,null,null,null,"Sep"]
[null,null,null,null,null,null,null,null,null,null,"Oct"]
[null,null,null,null,null,null,null,null,null,null,"Nov"]
[null,null,null,null,null,null,null,null,null,null,"Dec"]
[null,null,null,null,null,null,null,null,null,null,"Annual",{"$f":"AVERAGE(L22:L33)","v":{"$error":"#DIV/0!"}},{"$f":"MAX(M22:M33)","v":0},{"$f":"AVERAGE(N22:N33)","v":{"$error":"#DIV/0!"}},{"$f":"MAX(O22:O33)","v":0}]
[]
[null,null,null,null,null,null,null,null,null,{"$f":"+A5","v":2025},"mg/Nm3","Monthly mean of half-hourly averages","Highest half- hourly average","Monthly mean of  daily averages","Highest daily average"]
[null,null,null,null,null,null,null,null,null,"A3","Jan"]
[null,null,null,null,null,null,null,null,null,null,"Feb"]
[null,null,null,null,null,null,null,null,null,null,"Mar"]
[null,null,null,null,null,null,null,null,null,null,"Apr"]
[null,null,null,null,null,null,null,null,null,null,"May"]
[null,null,null,null,null,null,null,null,null,null,"Jun"]
[null,null,null,null,null,null,null,null,null,null,"Jul"]
[null,null,null,null,null,null,null,null,null,null,"Aug"]
[null,null,null,null,null,null,null,null,null,null,"Sep"]
[null,null,null,null,null,null,null,null,null,null,"Oct"]
[null,null,null,null,null,null,null,null,null,null,"Nov"]
["Comments :",null,null,null,null,null,null,null,null,null,"Dec"]
[null,null,null,null,null,null,null,null,null,null,"Annual",{"$f":"AVERAGE(L37:L48)","v":{"$error":"#DIV/0!"}},{"$f":"MAX(M37:M48)","v":0},{"$f":"AVERAGE(N37:N48)","v":{"$error":"#DIV/0!"}},{"$f":"MAX(O37:O48)","v":0}]
[]
[null,null,null,null,null,null,null,null,null,{"$f":"+A5","v":2025},"mg/Nm3","Monthly mean of half-hourly averages","Highest half- hourly average","Monthly mean of  daily averages","Highest daily average"]
[null,null,null,null,null,null,null,null,null,"A4","Jan"]
[null,null,null,null,null,null,null,null,null,null,"Feb"]
[null,null,null,null,null,null,null,null,null,null,"Mar"]
[null,null,null,null,null,null,null,null,null,null,"Apr"]
[null,null,null,null,null,null,null,null,null,null,"May"]
[null,null,null,null,null,null,null,null,null,null,"Jun"]
[null,null,null,null,null,null,null,null,null,null,"Jul"]
[null,null,null,null,null,null,null,null,null,null,"Aug"]
[null,null,null,null,null,null,null,null,null,null,"Sep"]
[null,null,null,null,null,null,null,null,null,null,"Oct"]
[null,null,null,null,null,null,null,null,null,null,"Nov"]
[null,null,null,null,null,null,null,null,null,null,"Dec"]
[null,null,null,null,null,null,null,null,null,null,"Annual",{"$f":"AVERAGE(L52:L63)","v":{"$error":"#DIV/0!"}},{"$f":"MAX(M52:M63)","v":0},{"$f":"AVERAGE(N52:N63)","v":{"$error":"#DIV/0!"}},{"$f":"MAX(O52:O63)","v":0}]
[]
[null,null,null,null,null,null,null,null,null,{"$f":"+A5","v":2025},"mg/Nm3","Monthly mean of half-hourly averages","Highest half- hourly average","Monthly mean of  daily averages","Highest daily average"]
[null,null,null,null,null,null,null,null,null,"A5","Jan"]
[null,null,null,null,null,null,null,null,null,null,"Feb"]
[null,null,null,null,null,null,null,null,null,null,"Mar"]
[null,null,null,null,null,null,null,null,null,null,"Apr"]
[null,null,null,null,null,null,null,null,null,null,"May"]
[null,null,null,null,null,null,null,null,null,null,"Jun"]
[null,null,null,null,null,null,null,null,null,null,"Jul"]
[null,null,null,null,null,null,null,null,null,null,"Aug"]
[null,null,null,null,null,null,null,null,null,null,"Sep"]
[null,null,null,null,null,null,null,null,null,null,"Oct"]
[null,null,null,null,null,null,null,null,null,null,"Nov"]
[null,null,null,null,null,null,null,null,null,null,"Dec"]
[null,null,null,null,null,null,null,null,null,null,"Annual",{"$f":"AVERAGE(L67:L78)","v":{"$error":"#DIV/0!"}},{"$f":"MAX(M67:M78)","v":0},{"$f":"AVERAGE(N67:N78)","v":{"$error":"#DIV/0!"}},{"$f":"MAX(O67:O78)","v":0}]

{"sheet":"NOx","index":16,"n_rows":79,"n_cols":17,"rows_kept":79,"cut":false,"hidden":false,"merged":[[3,16,7,18],[9,16,11,18],[12,16,15,18],[66,9,78,9],[4,1,4,3],[4,4,4,6],[4,9,4,14],[6,9,18,9],[21,9,33,9],[36,9,48,9],[47,0,47,6],[48,0,51,6],[51,9,63,9],[18,4,18,6]]}
[{"$f":"+'Cover Page'!$B$29","v":"Annual Performance Report 2025"},null,null,null,{"$f":"+'Cover Page'!$B$33","v":"Ellesmere Port Incinerator"}]
[]
["Monitoring of Oxides of Nitrogen emissions",null,null,"Whole Installation",null,null,"See  Notes in Cell Q3",null,null,{"$f":"+A3","v":"Monitoring of Oxides of Nitrogen emissions"},null,null,null,"Per Combustion Line",null,null,"Notes:"]
[null,null,null,null,null,null,null,null,null,null,null,null,null,null,null,null,"User to add logic to complete Whole installation, Table A5:G18. From the data in Per Combustion Line, Table J6:O79, subject to No. of lines installed"]
[{"$f":"+'Cover Page'!C39","v":2025},"1/2 Hourly Reference Periods",null,null,"Daily Reference Periods"]
["mg/Nm3","1/2 hourly NOx ELV","Monthly mean of half-hourly averages","Highest half- hourly average","Daily NOx ELV","Monthly mean of  daily averages","Highest daily average",null,null,{"$f":"+A5","v":2025},"mg/Nm3","Monthly mean of half-hourly averages","Highest half- hourly average","Monthly mean of  daily averages","Highest daily average"]
["Jan",180,{"$f":"L7","v":108.56},{"$f":"M7","v":232.6},180,{"$f":"N7","v":96},{"$f":"O7","v":113},null,null,"A1","Jan",108.56,232.6,96,113]
["Feb",180,{"$f":"L8","v":110.44},{"$f":"M8","v":257.3},180,{"$f":"N8","v":98},{"$f":"O8","v":119},null,null,null,"Feb",110.44,257.3,98,119]
["Mar",180,110.29,205,180,95,131,null,null,null,"Mar",110.29,205,95,131,null,"Whole Installation table A5:G18:"]
["Apr",180,111.5,209.3,180,69,116,null,null,null,"Apr",111.5,209.3,69,116,null,"Mean: for 1/2 hourly and daily periods calculate mean of values across all operational combustion lines for the month"]
["May",180,112.9,178.7,180,100,115,null,null,null,"May",112.9,178.7,100,115]
["Jun",180,120.2,191.6,180,100,124,null,null,null,"Jun",120.2,191.6,100,124]
["Jul",180,111.8,288.89999999999998,180,99,131,null,null,null,"Jul",111.8,288.89999999999998,99,131,null,"Maximum: for 1/2 hourly and daily periods use the highest value across all operational combustion lines for the month"]
["Aug",180,109,236.2,180,98,108,null,null,null,"Aug",109,236.2,98,108]
["Sep",180,104.5,184.3,180,45,113,null,null,null,"Sep",104.5,184.3,45,113]
["Oct",180,120.5,189.7,180,88,124,null,null,null,"Oct",120.5,189.7,88,124]
["Nov",180,120.2,313.60000000000002,180,103,126,null,null,null,"Nov",120.2,313.60000000000002,103,126]
["Dec",180,126.1,241.5,180,89,133,null,null,null,"Dec",126.1,241.5,89,133]
[null,null,null,null,null,null,null,null,null,null,"Annual",{"$f":"AVERAGE(L7:L18)","v":113.8325},{"$f":"MAX(M7:M18)","v":313.60000000000002},{"$f":"AVERAGE(N7:N18)","v":90},{"$f":"MAX(O7:O18)","v":133}]
[]
[null,null,null,null,null,null,null,null,null,{"$f":"+A5","v":2025},"mg/Nm3","Monthly mean of half-hourly averages","Highest half- hourly average","Monthly mean of  daily averages","Highest daily average"]
[null,null,null,null,null,null,null,null,null,"A2","Jan"]
[null,null,null,null,null,null,null,null,null,null,"Feb"]
[null,null,null,null,null,null,null,null,null,null,"Mar"]
[null,null,null,null,null,null,null,null,null,null,"Apr"]
[null,null,null,null,null,null,null,null,null,null,"May"]
[null,null,null,null,null,null,null,null,null,null,"Jun"]
[null,null,null,null,null,null,null,null,null,null,"Jul"]
[null,null,null,null,null,null,null,null,null,null,"Aug"]
[null,null,null,null,null,null,null,null,null,null,"Sep"]
[null,null,null,null,null,null,null,null,null,null,"Oct"]
[null,null,null,null,null,null,null,null,null,null,"Nov"]
[null,null,null,null,null,null,null,null,null,null,"Dec"]
[null,null,null,null,null,null,null,null,null,null,"Annual",{"$f":"AVERAGE(L22:L33)","v":{"$error":"#DIV/0!"}},{"$f":"MAX(M22:M33)","v":0},{"$f":"AVERAGE(N22:N33)","v":{"$error":"#DIV/0!"}},{"$f":"MAX(O22:O33)","v":0}]
[]
[null,null,null,null,null,null,null,null,null,{"$f":"+A5","v":2025},"mg/Nm3","Monthly mean of half-hourly averages","Highest half- hourly average","Monthly mean of  daily averages","Highest daily average"]
[null,null,null,null,null,null,null,null,null,"A3","Jan"]
[null,null,null,null,null,null,null,null,null,null,"Feb"]
[null,null,null,null,null,null,null,null,null,null,"Mar"]
[null,null,null,null,null,null,null,null,null,null,"Apr"]
[null,null,null,null,null,null,null,null,null,null,"May"]
[null,null,null,null,null,null,null,null,null,null,"Jun"]
[null,null,null,null,null,null,null,null,null,null,"Jul"]
[null,null,null,null,null,null,null,null,null,null,"Aug"]
[null,null,null,null,null,null,null,null,null,null,"Sep"]
[null,null,null,null,null,null,null,null,null,null,"Oct"]
[null,null,null,null,null,null,null,null,null,null,"Nov"]
["Comments :",null,null,null,null,null,null,null,null,null,"Dec"]
[null,null,null,null,null,null,null,null,null,null,"Annual",{"$f":"AVERAGE(L37:L48)","v":{"$error":"#DIV/0!"}},{"$f":"MAX(M37:M48)","v":0},{"$f":"AVERAGE(N37:N48)","v":{"$error":"#DIV/0!"}},{"$f":"MAX(O37:O48)","v":0}]
[]
[null,null,null,null,null,null,null,null,null,{"$f":"+A5","v":2025},"mg/Nm3","Monthly mean of half-hourly averages","Highest half- hourly average","Monthly mean of  daily averages","Highest daily average"]
[null,null,null,null,null,null,null,null,null,"A4","Jan"]
[null,null,null,null,null,null,null,null,null,null,"Feb"]
[null,null,null,null,null,null,null,null,null,null,"Mar"]
[null,null,null,null,null,null,null,null,null,null,"Apr"]
[null,null,null,null,null,null,null,null,null,null,"May"]
[null,null,null,null,null,null,null,null,null,null,"Jun"]
[null,null,null,null,null,null,null,null,null,null,"Jul"]
[null,null,null,null,null,null,null,null,null,null,"Aug"]
[null,null,null,null,null,null,null,null,null,null,"Sep"]
[null,null,null,null,null,null,null,null,null,null,"Oct"]
[null,null,null,null,null,null,null,null,null,null,"Nov"]
[null,null,null,null,null,null,null,null,null,null,"Dec"]
[null,null,null,null,null,null,null,null,null,null,"Annual",{"$f":"AVERAGE(L52:L63)","v":{"$error":"#DIV/0!"}},{"$f":"MAX(M52:M63)","v":0},{"$f":"AVERAGE(N52:N63)","v":{"$error":"#DIV/0!"}},{"$f":"MAX(O52:O63)","v":0}]
[]
[null,null,null,null,null,null,null,null,null,{"$f":"+A5","v":2025},"mg/Nm3","Monthly mean of half-hourly averages","Highest half- hourly average","Monthly mean of  daily averages","Highest daily average"]
[null,null,null,null,null,null,null,null,null,"A5","Jan"]
[null,null,null,null,null,null,null,null,null,null,"Feb"]
[null,null,null,null,null,null,null,null,null,null,"Mar"]
[null,null,null,null,null,null,null,null,null,null,"Apr"]
[null,null,null,null,null,null,null,null,null,null,"May"]
[null,null,null,null,null,null,null,null,null,null,"Jun"]
[null,null,null,null,null,null,null,null,null,null,"Jul"]
[null,null,null,null,null,null,null,null,null,null,"Aug"]
[null,null,null,null,null,null,null,null,null,null,"Sep"]
[null,null,null,null,null,null,null,null,null,null,"Oct"]
[null,null,null,null,null,null,null,null,null,null,"Nov"]
[null,null,null,null,null,null,null,null,null,null,"Dec"]
[null,null,null,null,null,null,null,null,null,null,"Annual",{"$f":"AVERAGE(L67:L78)","v":{"$error":"#DIV/0!"}},{"$f":"MAX(M67:M78)","v":0},{"$f":"AVERAGE(N67:N78)","v":{"$error":"#DIV/0!"}},{"$f":"MAX(O67:O78)","v":0}]

{"sheet":"TOC","index":17,"n_rows":79,"n_cols":17,"rows_kept":79,"cut":false,"hidden":false,"merged":[[3,16,7,18],[9,16,11,18],[12,16,15,18],[66,9,78,9],[4,1,4,3],[4,4,4,6],[4,9,4,14],[6,9,18,9],[21,9,33,9],[36,9,48,9],[47,0,47,6],[48,0,51,6],[51,9,63,9]]}
[{"$f":"+'Cover Page'!$B$29","v":"Annual Performance Report 2025"},null,null,null,{"$f":"+'Cover Page'!$B$33","v":"Ellesmere Port Incinerator"}]
[]
["Monitoring of Total organic carbon emissions",null,null,"Whole Installation",null,null,"See  Notes in Cell Q3",null,null,{"$f":"+A3","v":"Monitoring of Total organic carbon emissions"},null,null,null,"Per Combustion Line",null,null,"Notes:"]
[null,null,null,null,null,null,null,null,null,null,null,null,null,null,null,null,"User to add logic to complete Whole installation, Table A5:G18. From the data in Per Combustion Line, Table J6:O79, subject to No. of lines installed"]
[{"$f":"+'Cover Page'!C39","v":2025},"1/2 Hourly Reference Periods",null,null,"Daily Reference Periods"]
["mg/Nm3","1/2 hourly TOC ELV","Monthly mean of half-hourly averages","Highest half- hourly average","Daily TOC ELV","Monthly mean of  daily averages","Highest daily average",null,null,{"$f":"+A5","v":2025},"mg/Nm3","Monthly mean of half-hourly averages","Highest half- hourly average","Monthly mean of  daily averages","Highest daily average"]
["Jan",10,{"$f":"L7","v":0.71},{"$f":"M7","v":31.6},10,{"$f":"N7","v":0.65},{"$f":"O7","v":1.82},null,null,"A1","Jan",0.71,31.6,0.65,1.82]
["Feb",10,{"$f":"L8","v":0.4},{"$f":"M8","v":15.1},10,{"$f":"N8","v":0.44},{"$f":"O8","v":1.05},null,null,null,"Feb",0.4,15.1,0.44,1.05]
["Mar",10,0.61,27,10,0.56999999999999995,2.33,null,null,null,"Mar",0.61,27,0.56999999999999995,2.33,null,"Whole Installation table A5:G18:"]
["Apr",10,0.4,33.5,10,0.48,1.39,null,null,null,"Apr",0.4,33.5,0.48,1.39,null,"Mean: for 1/2 hourly and daily periods calculate mean of values across all operational combustion lines for the month"]
["May",10,1.3,45.5,10,1.1200000000000001,2.56,null,null,null,"May",1.3,45.5,1.1200000000000001,2.56]
["Jun",10,1,47.5,10,0.85,2.72,null,null,null,"Jun",1,47.5,0.85,2.72]
["Jul",10,0.4,65.099999999999994,10,0.96,3.95,null,null,null,"Jul",0.4,65.099999999999994,0.96,3.95,null,"Maximum: for 1/2 hourly and daily periods use the highest value across all operational combustion lines for the month"]
["Aug",10,1,87.7,10,1.03,8.49,null,null,null,"Aug",1,87.7,1.03,8.49]
["Sep",10,1.9,44.8,10,0.68,3.04,null,null,null,"Sep",1.9,44.8,0.68,3.04]
["Oct",10,0.6,33.4,10,0.68,2.74,null,null,null,"Oct",0.6,33.4,0.68,2.74]
["Nov",10,0.6,43.1,10,0.55000000000000004,3.07,null,null,null,"Nov",0.6,43.1,0.55000000000000004,3.07]
["Dec",10,0.5,35.799999999999997,10,0.39,1.51,null,null,null,"Dec",0.5,35.799999999999997,0.39,1.51]
[null,null,null,null,null,null,null,null,null,null,"Annual",{"$f":"AVERAGE(L7:L18)","v":0.78500000000000003},{"$f":"MAX(M7:M18)","v":87.7},{"$f":"AVERAGE(N7:N18)","v":0.70000000000000007},{"$f":"MAX(O7:O18)","v":8.49}]
[]
[null,null,null,null,null,null,null,null,null,{"$f":"+A5","v":2025},"mg/Nm3","Monthly mean of half-hourly averages","Highest half- hourly average","Monthly mean of  daily averages","Highest daily average"]
[null,null,null,null,null,null,null,null,null,"A2","Jan"]
[null,null,null,null,null,null,null,null,null,null,"Feb"]
[null,null,null,null,null,null,null,null,null,null,"Mar"]
[null,null,null,null,null,null,null,null,null,null,"Apr"]
[null,null,null,null,null,null,null,null,null,null,"May"]
[null,null,null,null,null,null,null,null,null,null,"Jun"]
[null,null,null,null,null,null,null,null,null,null,"Jul"]
[null,null,null,null,null,null,null,null,null,null,"Aug"]
[null,null,null,null,null,null,null,null,null,null,"Sep"]
[null,null,null,null,null,null,null,null,null,null,"Oct"]
[null,null,null,null,null,null,null,null,null,null,"Nov"]
[null,null,null,null,null,null,null,null,null,null,"Dec"]
[null,null,null,null,null,null,null,null,null,null,"Annual",{"$f":"AVERAGE(L22:L33)","v":{"$error":"#DIV/0!"}},{"$f":"MAX(M22:M33)","v":0},{"$f":"AVERAGE(N22:N33)","v":{"$error":"#DIV/0!"}},{"$f":"MAX(O22:O33)","v":0}]
[]
[null,null,null,null,null,null,null,null,null,{"$f":"+A5","v":2025},"mg/Nm3","Monthly mean of half-hourly averages","Highest half- hourly average","Monthly mean of  daily averages","Highest daily average"]
[null,null,null,null,null,null,null,null,null,"A3","Jan"]
[null,null,null,null,null,null,null,null,null,null,"Feb"]
[null,null,null,null,null,null,null,null,null,null,"Mar"]
[null,null,null,null,null,null,null,null,null,null,"Apr"]
[null,null,null,null,null,null,null,null,null,null,"May"]
[null,null,null,null,null,null,null,null,null,null,"Jun"]
[null,null,null,null,null,null,null,null,null,null,"Jul"]
[null,null,null,null,null,null,null,null,null,null,"Aug"]
[null,null,null,null,null,null,null,null,null,null,"Sep"]
[null,null,null,null,null,null,null,null,null,null,"Oct"]
[null,null,null,null,null,null,null,null,null,null,"Nov"]
["Comments :",null,null,null,null,null,null,null,null,null,"Dec"]
[null,null,null,null,null,null,null,null,null,null,"Annual",{"$f":"AVERAGE(L37:L48)","v":{"$error":"#DIV/0!"}},{"$f":"MAX(M37:M48)","v":0},{"$f":"AVERAGE(N37:N48)","v":{"$error":"#DIV/0!"}},{"$f":"MAX(O37:O48)","v":0}]
[]
[null,null,null,null,null,null,null,null,null,{"$f":"+A5","v":2025},"mg/Nm3","Monthly mean of half-hourly averages","Highest half- hourly average","Monthly mean of  daily averages","Highest daily average"]
[null,null,null,null,null,null,null,null,null,"A4","Jan"]
[null,null,null,null,null,null,null,null,null,null,"Feb"]
[null,null,null,null,null,null,null,null,null,null,"Mar"]
[null,null,null,null,null,null,null,null,null,null,"Apr"]
[null,null,null,null,null,null,null,null,null,null,"May"]
[null,null,null,null,null,null,null,null,null,null,"Jun"]
[null,null,null,null,null,null,null,null,null,null,"Jul"]
[null,null,null,null,null,null,null,null,null,null,"Aug"]
[null,null,null,null,null,null,null,null,null,null,"Sep"]
[null,null,null,null,null,null,null,null,null,null,"Oct"]
[null,null,null,null,null,null,null,null,null,null,"Nov"]
[null,null,null,null,null,null,null,null,null,null,"Dec"]
[null,null,null,null,null,null,null,null,null,null,"Annual",{"$f":"AVERAGE(L52:L63)","v":{"$error":"#DIV/0!"}},{"$f":"MAX(M52:M63)","v":0},{"$f":"AVERAGE(N52:N63)","v":{"$error":"#DIV/0!"}},{"$f":"MAX(O52:O63)","v":0}]
[]
[null,null,null,null,null,null,null,null,null,{"$f":"+A5","v":2025},"mg/Nm3","Monthly mean of half-hourly averages","Highest half- hourly average","Monthly mean of  daily averages","Highest daily average"]
[null,null,null,null,null,null,null,null,null,"A5","Jan"]
[null,null,null,null,null,null,null,null,null,null,"Feb"]
[null,null,null,null,null,null,null,null,null,null,"Mar"]
[null,null,null,null,null,null,null,null,null,null,"Apr"]
[null,null,null,null,null,null,null,null,null,null,"May"]
[null,null,null,null,null,null,null,null,null,null,"Jun"]
[null,null,null,null,null,null,null,null,null,null,"Jul"]
[null,null,null,null,null,null,null,null,null,null,"Aug"]
[null,null,null,null,null,null,null,null,null,null,"Sep"]
[null,null,null,null,null,null,null,null,null,null,"Oct"]
[null,null,null,null,null,null,null,null,null,null,"Nov"]
[null,null,null,null,null,null,null,null,null,null,"Dec"]
[null,null,null,null,null,null,null,null,null,null,"Annual",{"$f":"AVERAGE(L67:L78)","v":{"$error":"#DIV/0!"}},{"$f":"MAX(M67:M78)","v":0},{"$f":"AVERAGE(N67:N78)","v":{"$error":"#DIV/0!"}},{"$f":"MAX(O67:O78)","v":0}]

{"sheet":"Particulates","index":18,"n_rows":79,"n_cols":17,"rows_kept":79,"cut":false,"hidden":false,"merged":[[4,16,8,18],[10,16,12,18],[13,16,16,18],[66,9,78,9],[4,1,4,3],[4,4,4,6],[4,9,4,14],[6,9,18,9],[21,9,33,9],[36,9,48,9],[47,0,47,6],[48,0,51,6],[51,9,63,9],[18,4,18,6]]}
[{"$f":"+'Cover Page'!$B$29","v":"Annual Performance Report 2025"},null,null,null,{"$f":"+'Cover Page'!$B$33","v":"Ellesmere Port Incinerator"}]
[]
["Monitoring of Particulate matter emissions",null,null,"Whole Installation",null,null,"See  Notes in Cell Q3",null,null,{"$f":"+A3","v":"Monitoring of Particulate matter emissions"},null,null,null,"Per Combustion Line",null,null,"Notes:"]
[]
[{"$f":"+'Cover Page'!C39","v":2025},"1/2 Hourly Reference Periods",null,null,"Daily Reference Periods",null,null,null,null,null,null,null,null,null,null,null,"User to add logic to complete Whole installation, Table A5:G18. From the data in Per Combustion Line, Table J6:O79, subject to No. of lines installed"]
["mg/Nm3","1/2 hourly PM ELV","Monthly mean of half-hourly averages","Highest half- hourly average","Daily PM ELV","Monthly mean of  daily averages","Highest daily average",null,null,{"$f":"+A5","v":2025},"mg/Nm3","Monthly mean of half-hourly averages","Highest half- hourly average","Monthly mean of  daily averages","Highest daily average"]
["Jan",5,{"$f":"L7","v":0.76},{"$f":"M7","v":34.200000000000003},5,{"$f":"N7","v":0.5},{"$f":"O7","v":7.09},null,null,"A1","Jan",0.76,34.200000000000003,0.5,7.09]
["Feb",5,{"$f":"L8","v":0.33},{"$f":"M8","v":1.6},5,{"$f":"N8","v":0.28999999999999998},{"$f":"O8","v":0.48},null,null,null,"Feb",0.33,1.6,0.28999999999999998,0.48]
["Mar",5,0.36,3.7,5,0.32,0.57999999999999996,null,null,null,"Mar",0.36,3.7,0.32,0.57999999999999996]
["Apr",5,0.4,1.5,5,0.22,0.38,null,null,null,"Apr",0.4,1.5,0.22,0.38,null,"Whole Installation table A5:G18:"]
["May",5,0.4,1.2,5,0.39,0.62,null,null,null,"May",0.4,1.2,0.39,0.62,null,"Mean: for 1/2 hourly and daily periods calculate mean of values across all operational combustion lines for the month"]
["Jun",5,0.5,2.7,5,0.44,1.26,null,null,null,"Jun",0.5,2.7,0.44,1.26]
["Jul",5,0.7,4.7,5,0.65,2,null,null,null,"Jul",0.7,4.7,0.65,2]
["Aug",5,1.7,16.100000000000001,5,1.61,3.27,null,null,null,"Aug",1.7,16.100000000000001,1.61,3.27,null,"Maximum: for 1/2 hourly and daily periods use the highest value across all operational combustion lines for the month"]
["Sep",5,1.8,4.7,5,0.77,2.1,null,null,null,"Sep",1.8,4.7,0.77,2.1]
["Oct",5,1.3,47.7,5,1,4.04,null,null,null,"Oct",1.3,47.7,1,4.04]
["Nov",5,2.2000000000000002,13.4,5,1.84,3.41,null,null,null,"Nov",2.2000000000000002,13.4,1.84,3.41]
["Dec",5,1.3,2.8,5,1.03,2.11,null,null,null,"Dec",1.3,2.8,1.03,2.11]
[null,null,null,null,null,null,null,null,null,null,"Annual",{"$f":"AVERAGE(L7:L18)","v":0.97916666666666663},{"$f":"MAX(M7:M18)","v":47.7},{"$f":"AVERAGE(N7:N18)","v":0.75499999999999989},{"$f":"MAX(O7:O18)","v":7.09}]
[]
[null,null,null,null,null,null,null,null,null,{"$f":"+A5","v":2025},"mg/Nm3","Monthly mean of half-hourly averages","Highest half- hourly average","Monthly mean of  daily averages","Highest daily average"]
[null,null,null,null,null,null,null,null,null,"A2","Jan"]
[null,null,null,null,null,null,null,null,null,null,"Feb"]
[null,null,null,null,null,null,null,null,null,null,"Mar"]
[null,null,null,null,null,null,null,null,null,null,"Apr"]
[null,null,null,null,null,null,null,null,null,null,"May"]
[null,null,null,null,null,null,null,null,null,null,"Jun"]
[null,null,null,null,null,null,null,null,null,null,"Jul"]
[null,null,null,null,null,null,null,null,null,null,"Aug"]
[null,null,null,null,null,null,null,null,null,null,"Sep"]
[null,null,null,null,null,null,null,null,null,null,"Oct"]
[null,null,null,null,null,null,null,null,null,null,"Nov"]
[null,null,null,null,null,null,null,null,null,null,"Dec"]
[null,null,null,null,null,null,null,null,null,null,"Annual",{"$f":"AVERAGE(L22:L33)","v":{"$error":"#DIV/0!"}},{"$f":"MAX(M22:M33)","v":0},{"$f":"AVERAGE(N22:N33)","v":{"$error":"#DIV/0!"}},{"$f":"MAX(O22:O33)","v":0}]
[]
[null,null,null,null,null,null,null,null,null,{"$f":"+A5","v":2025},"mg/Nm3","Monthly mean of half-hourly averages","Highest half- hourly average","Monthly mean of  daily averages","Highest daily average"]
[null,null,null,null,null,null,null,null,null,"A3","Jan"]
[null,null,null,null,null,null,null,null,null,null,"Feb"]
[null,null,null,null,null,null,null,null,null,null,"Mar"]
[null,null,null,null,null,null,null,null,null,null,"Apr"]
[null,null,null,null,null,null,null,null,null,null,"May"]
[null,null,null,null,null,null,null,null,null,null,"Jun"]
[null,null,null,null,null,null,null,null,null,null,"Jul"]
[null,null,null,null,null,null,null,null,null,null,"Aug"]
[null,null,null,null,null,null,null,null,null,null,"Sep"]
[null,null,null,null,null,null,null,null,null,null,"Oct"]
[null,null,null,null,null,null,null,null,null,null,"Nov"]
["Comments :",null,null,null,null,null,null,null,null,null,"Dec"]
["January highest daily average includes 7 hours of abnormal operation.",null,null,null,null,null,null,null,null,null,"Annual",{"$f":"AVERAGE(L37:L48)","v":{"$error":"#DIV/0!"}},{"$f":"MAX(M37:M48)","v":0},{"$f":"AVERAGE(N37:N48)","v":{"$error":"#DIV/0!"}},{"$f":"MAX(O37:O48)","v":0}]
[]
[null,null,null,null,null,null,null,null,null,{"$f":"+A5","v":2025},"mg/Nm3","Monthly mean of half-hourly averages","Highest half- hourly average","Monthly mean of  daily averages","Highest daily average"]
[null,null,null,null,null,null,null,null,null,"A4","Jan"]
[null,null,null,null,null,null,null,null,null,null,"Feb"]
[null,null,null,null,null,null,null,null,null,null,"Mar"]
[null,null,null,null,null,null,null,null,null,null,"Apr"]
[null,null,null,null,null,null,null,null,null,null,"May"]
[null,null,null,null,null,null,null,null,null,null,"Jun"]
[null,null,null,null,null,null,null,null,null,null,"Jul"]
[null,null,null,null,null,null,null,null,null,null,"Aug"]
[null,null,null,null,null,null,null,null,null,null,"Sep"]
[null,null,null,null,null,null,null,null,null,null,"Oct"]
[null,null,null,null,null,null,null,null,null,null,"Nov"]
[null,null,null,null,null,null,null,null,null,null,"Dec"]
[null,null,null,null,null,null,null,null,null,null,"Annual",{"$f":"AVERAGE(L52:L63)","v":{"$error":"#DIV/0!"}},{"$f":"MAX(M52:M63)","v":0},{"$f":"AVERAGE(N52:N63)","v":{"$error":"#DIV/0!"}},{"$f":"MAX(O52:O63)","v":0}]
[]
[null,null,null,null,null,null,null,null,null,{"$f":"+A5","v":2025},"mg/Nm3","Monthly mean of half-hourly averages","Highest half- hourly average","Monthly mean of  daily averages","Highest daily average"]
[null,null,null,null,null,null,null,null,null,"A5","Jan"]
[null,null,null,null,null,null,null,null,null,null,"Feb"]
[null,null,null,null,null,null,null,null,null,null,"Mar"]
[null,null,null,null,null,null,null,null,null,null,"Apr"]
[null,null,null,null,null,null,null,null,null,null,"May"]
[null,null,null,null,null,null,null,null,null,null,"Jun"]
[null,null,null,null,null,null,null,null,null,null,"Jul"]
[null,null,null,null,null,null,null,null,null,null,"Aug"]
[null,null,null,null,null,null,null,null,null,null,"Sep"]
[null,null,null,null,null,null,null,null,null,null,"Oct"]
[null,null,null,null,null,null,null,null,null,null,"Nov"]
[null,null,null,null,null,null,null,null,null,null,"Dec"]
[null,null,null,null,null,null,null,null,null,null,"Annual",{"$f":"AVERAGE(L67:L78)","v":{"$error":"#DIV/0!"}},{"$f":"MAX(M67:M78)","v":0},{"$f":"AVERAGE(N67:N78)","v":{"$error":"#DIV/0!"}},{"$f":"MAX(O67:O78)","v":0}]

{"sheet":"CO 0.5 hourly","index":19,"n_rows":82,"n_cols":17,"rows_kept":82,"cut":false,"hidden":false,"merged":[[4,0,5,6],[6,16,10,18],[12,16,14,18],[15,16,18,18],[69,9,81,9],[7,1,7,3],[7,4,7,6],[7,9,7,14],[9,9,21,9],[24,9,36,9],[39,9,51,9],[50,0,50,6],[51,0,54,6],[54,9,66,9]]}
[{"$f":"+'Cover Page'!$B$29","v":"Annual Performance Report 2025"},null,null,null,{"$f":"+'Cover Page'!$B$33","v":"Ellesmere Port Incinerator"}]
[]
["Monitoring of Carbon Monoxide (half hourly)",null,null,"Whole Installation",null,null,"See  Notes in Cell Q3",null,null,{"$f":"+A3","v":"Monitoring of Carbon Monoxide (half hourly)"},null,null,null,"Per Combustion Line",null,null,"Notes:"]
[]
["Please complete this tab for your plant if you have 1/2 hourly CO ELVs; otherwise, leave it blank and complete the CO 95% 10 min tab"]
[]
[null,null,null,null,null,null,null,null,null,null,null,null,null,null,null,null,"User to add logic to complete Whole installation, Table A5:G18. From the data in Per Combustion Line, Table J6:O79, subject to No. of lines installed"]
[{"$f":"+'Cover Page'!C39","v":2025},"1/2 Hourly Reference Periods",null,null,"Daily Reference Periods"]
["mg/Nm3","1/2 hourly CO ELV","Monthly mean of half-hourly averages","Highest half- hourly average","Daily CO ELV","Monthly mean of  daily averages","Highest daily average",null,null,{"$f":"+A8","v":2025},"mg/Nm3","Monthly mean of half-hourly averages","Highest half- hourly average","Monthly mean of  daily averages","Highest daily average"]
["Jan",100,null,null,50,null,null,null,null,"A1","Jan"]
["Feb",{"$f":"+B10","v":100},null,null,{"$f":"+E10","v":50},null,null,null,null,null,"Feb"]
["Mar",{"$f":"+B11","v":100},null,null,{"$f":"+E11","v":50},null,null,null,null,null,"Mar",null,null,null,null,null,"Whole Installation table A5:G18:"]
["Apr",100,null,null,50,null,null,null,null,null,"Apr",null,null,null,null,null,"Mean: for 1/2 hourly and daily periods calculate mean of values across all operational combustion lines for the month"]
["May",100,null,null,50,null,null,null,null,null,"May"]
["Jun",100,null,null,50,null,null,null,null,null,"Jun"]
["Jul",100,null,null,50,null,null,null,null,null,"Jul",null,null,null,null,null,"Maximum: for 1/2 hourly and daily periods use the highest value across all operational combustion lines for the month"]
["Aug",100,null,null,50,null,null,null,null,null,"Aug"]
["Sep",100,null,null,50,null,null,null,null,null,"Sep"]
["Oct",100,null,null,50,null,null,null,null,null,"Oct"]
["Nov",100,null,null,50,null,null,null,null,null,"Nov"]
["Dec",100,null,null,50,null,null,null,null,null,"Dec"]
[null,null,null,null,null,null,null,null,null,null,"Annual",{"$f":"AVERAGE(L10:L21)","v":{"$error":"#DIV/0!"}},{"$f":"MAX(M10:M21)","v":0},{"$f":"AVERAGE(N10:N21)","v":{"$error":"#DIV/0!"}},{"$f":"MAX(O10:O21)","v":0}]
[]
[null,null,null,null,null,null,null,null,null,{"$f":"+A8","v":2025},"mg/Nm3","Monthly mean of half-hourly averages","Highest half- hourly average","Monthly mean of  daily averages","Highest daily average"]
[null,null,null,null,null,null,null,null,null,"A2","Jan"]
[null,null,null,null,null,null,null,null,null,null,"Feb"]
[null,null,null,null,null,null,null,null,null,null,"Mar"]
[null,null,null,null,null,null,null,null,null,null,"Apr"]
[null,null,null,null,null,null,null,null,null,null,"May"]
[null,null,null,null,null,null,null,null,null,null,"Jun"]
[null,null,null,null,null,null,null,null,null,null,"Jul"]
[null,null,null,null,null,null,null,null,null,null,"Aug"]
[null,null,null,null,null,null,null,null,null,null,"Sep"]
[null,null,null,null,null,null,null,null,null,null,"Oct"]
[null,null,null,null,null,null,null,null,null,null,"Nov"]
[null,null,null,null,null,null,null,null,null,null,"Dec"]
[null,null,null,null,null,null,null,null,null,null,"Annual",{"$f":"AVERAGE(L25:L36)","v":{"$error":"#DIV/0!"}},{"$f":"MAX(M25:M36)","v":0},{"$f":"AVERAGE(N25:N36)","v":{"$error":"#DIV/0!"}},{"$f":"MAX(O25:O36)","v":0}]
[]
[null,null,null,null,null,null,null,null,null,{"$f":"+A8","v":2025},"mg/Nm3","Monthly mean of half-hourly averages","Highest half- hourly average","Monthly mean of  daily averages","Highest daily average"]
[null,null,null,null,null,null,null,null,null,"A3","Jan"]
[null,null,null,null,null,null,null,null,null,null,"Feb"]
[null,null,null,null,null,null,null,null,null,null,"Mar"]
[null,null,null,null,null,null,null,null,null,null,"Apr"]
[null,null,null,null,null,null,null,null,null,null,"May"]
[null,null,null,null,null,null,null,null,null,null,"Jun"]
[null,null,null,null,null,null,null,null,null,null,"Jul"]
[null,null,null,null,null,null,null,null,null,null,"Aug"]
[null,null,null,null,null,null,null,null,null,null,"Sep"]
[null,null,null,null,null,null,null,null,null,null,"Oct"]
[null,null,null,null,null,null,null,null,null,null,"Nov"]
["Comments :",null,null,null,null,null,null,null,null,null,"Dec"]
[null,null,null,null,null,null,null,null,null,null,"Annual",{"$f":"AVERAGE(L40:L51)","v":{"$error":"#DIV/0!"}},{"$f":"MAX(M40:M51)","v":0},{"$f":"AVERAGE(N40:N51)","v":{"$error":"#DIV/0!"}},{"$f":"MAX(O40:O51)","v":0}]
[]
[null,null,null,null,null,null,null,null,null,{"$f":"+A8","v":2025},"mg/Nm3","Monthly mean of half-hourly averages","Highest half- hourly average","Monthly mean of  daily averages","Highest daily average"]
[null,null,null,null,null,null,null,null,null,"A4","Jan"]
[null,null,null,null,null,null,null,null,null,null,"Feb"]
[null,null,null,null,null,null,null,null,null,null,"Mar"]
[null,null,null,null,null,null,null,null,null,null,"Apr"]
[null,null,null,null,null,null,null,null,null,null,"May"]
[null,null,null,null,null,null,null,null,null,null,"Jun"]
[null,null,null,null,null,null,null,null,null,null,"Jul"]
[null,null,null,null,null,null,null,null,null,null,"Aug"]
[null,null,null,null,null,null,null,null,null,null,"Sep"]
[null,null,null,null,null,null,null,null,null,null,"Oct"]
[null,null,null,null,null,null,null,null,null,null,"Nov"]
[null,null,null,null,null,null,null,null,null,null,"Dec"]
[null,null,null,null,null,null,null,null,null,null,"Annual",{"$f":"AVERAGE(L55:L66)","v":{"$error":"#DIV/0!"}},{"$f":"MAX(M55:M66)","v":0},{"$f":"AVERAGE(N55:N66)","v":{"$error":"#DIV/0!"}},{"$f":"MAX(O55:O66)","v":0}]
[]
[null,null,null,null,null,null,null,null,null,{"$f":"+A8","v":2025},"mg/Nm3","Monthly mean of half-hourly averages","Highest half- hourly average","Monthly mean of  daily averages","Highest daily average"]
[null,null,null,null,null,null,null,null,null,"A5","Jan"]
[null,null,null,null,null,null,null,null,null,null,"Feb"]
[null,null,null,null,null,null,null,null,null,null,"Mar"]
[null,null,null,null,null,null,null,null,null,null,"Apr"]
[null,null,null,null,null,null,null,null,null,null,"May"]
[null,null,null,null,null,null,null,null,null,null,"Jun"]
[null,null,null,null,null,null,null,null,null,null,"Jul"]
[null,null,null,null,null,null,null,null,null,null,"Aug"]
[null,null,null,null,null,null,null,null,null,null,"Sep"]
[null,null,null,null,null,null,null,null,null,null,"Oct"]
[null,null,null,null,null,null,null,null,null,null,"Nov"]
[null,null,null,null,null,null,null,null,null,null,"Dec"]
[null,null,null,null,null,null,null,null,null,null,"Annual",{"$f":"AVERAGE(L70:L81)","v":{"$error":"#DIV/0!"}},{"$f":"MAX(M70:M81)","v":0},{"$f":"AVERAGE(N70:N81)","v":{"$error":"#DIV/0!"}},{"$f":"MAX(O70:O81)","v":0}]

{"sheet":"CO 95% 10 min","index":20,"n_rows":82,"n_cols":19,"rows_kept":82,"cut":false,"hidden":false,"merged":[[4,0,5,7],[6,18,10,20],[12,18,14,20],[15,18,18,20],[69,10,81,10],[7,1,7,4],[7,5,7,7],[7,10,7,16],[9,10,21,10],[24,10,36,10],[39,10,51,10],[50,0,50,7],[51,0,54,7],[54,10,66,10]]}
[{"$f":"+'Cover Page'!$B$29","v":"Annual Performance Report 2025"},null,null,null,{"$f":"+'Cover Page'!$B$33","v":"Ellesmere Port Incinerator"}]
[]
["Monitoring of Carbon Monoxide (10-minute avg)",null,null,null,"Whole Installation",null,null,"See  Notes in Cell S3",null,{"$f":"+A3","v":"Monitoring of Carbon Monoxide (10-minute avg)"},null,null,null,null,"Per Combustion Line",null,"Notes:",null,"Notes:"]
[]
["Please complete this tab for your plant if you have 10-minute average CO ELVs; otherwise, leave it blank and complete the CO 0.5 hourly tab"]
[]
[null,null,null,null,null,null,null,null,null,null,null,null,null,null,null,null,null,null,"User to add logic to complete Whole installation, Table A5:H18. From the data in Per Combustion Line, Table K6:Q79, subject to No. of lines installed"]
[{"$f":"+'Cover Page'!C39","v":2025},"10-minute Reference Periods",null,null,null,"Daily Reference Periods"]
["mg/Nm3","95%ile 10-min avg CO ELV","Highest daily 95%ile 10-min average","Monthly mean of 10-min averages","Highest 10-min average","Daily CO ELV","Monthly mean of  daily averages","Highest daily average",null,null,{"$f":"+A8","v":2025},"mg/Nm3","Highest daily 95%ile 10-min average","Monthly mean of 10-min averages","Highest 10-min average","Monthly mean of  daily averages","Highest daily average"]
["Jan",150,{"$f":"M10","v":162.4},{"$f":"N10","v":8.8000000000000007},{"$f":"O10","v":320.89999999999998},50,{"$f":"P10","v":8.44},{"$f":"Q10","v":19.8},null,null,"A1","Jan",162.4,8.8000000000000007,320.89999999999998,8.44,19.8]
["Feb",{"$f":"+B10","v":150},{"$f":"M11","v":148.80000000000001},{"$f":"N11","v":7.7},{"$f":"O11","v":348.4},{"$f":"+F10","v":50},{"$f":"P11","v":7.5},{"$f":"Q11","v":21},null,null,null,"Feb",148.80000000000001,7.7,348.4,7.5,21]
["Mar",{"$f":"+B11","v":150},115,8.6,386.7,{"$f":"+F11","v":50},8.67,23.5,null,null,null,"Mar",115,8.6,386.7,8.67,23.5,null,"Whole Installation table A5:H18:"]
["Apr",150,128,10.5,339.2,50,11.23,30.7,null,null,null,"Apr",128,10.5,339.2,11.23,30.7,null,"Mean: for 10-min and daily periods use average of all operational combustion lines."]
["May",150,79.7,4.4000000000000004,262.8,50,4.4400000000000004,13.4,null,null,null,"May",79.7,4.4000000000000004,262.8,4.4400000000000004,13.4]
["Jun",150,96.5,5.4,303.89999999999998,50,5.54,20.3,null,null,null,"Jun",96.5,5.4,303.89999999999998,5.54,20.3]
["Jul",150,77.8,4.2,264.39999999999998,50,4.33,13.8,null,null,null,"Jul",77.8,4.2,264.39999999999998,4.33,13.8,null,"Maximum: for 10-min and daily periods use the highest of all operational combustion lines in any month."]
["Aug",150,125.9,4.3,353.8,50,4.25,18.8,null,null,null,"Aug",125.9,4.3,353.8,4.25,18.8]
["Sep",150,98.2,7.4,249.6,50,9.18,47.3,null,null,null,"Sep",98.2,7.4,249.6,9.18,47.3]
["Oct",150,137.80000000000001,6.2,234.5,50,6,19.7,null,null,null,"Oct",137.80000000000001,6.2,234.5,6,19.7]
["Nov",150,71.5,2.5,270,50,2.7,10.9,null,null,null,"Nov",71.5,2.5,270,2.7,10.9]
["Dec",150,76.8,2,305,50,2.2200000000000002,13,null,null,null,"Dec",76.8,2,305,2.2200000000000002,13]
[null,null,null,null,null,null,null,null,null,null,null,"Annual",{"$f":"AVERAGE(M10:M21)","v":109.86666666666666},{"$f":"AVERAGE(N10:N21)","v":6},{"$f":"MAX(O10:O21)","v":386.7},{"$f":"AVERAGE(P10:P21)","v":6.208333333333333},{"$f":"MAX(Q10:Q21)","v":47.3}]
[]
[null,null,null,null,null,null,null,null,null,null,{"$f":"+A8","v":2025},"mg/Nm3","Highest daily 95%ile 10-min average","Monthly mean of 10-min averages","Highest 10-min average","Monthly mean of  daily averages","Highest daily average"]
[null,null,null,null,null,null,null,null,null,null,"A2","Jan"]
[null,null,null,null,null,null,null,null,null,null,null,"Feb"]
[null,null,null,null,null,null,null,null,null,null,null,"Mar"]
[null,null,null,null,null,null,null,null,null,null,null,"Apr"]
[null,null,null,null,null,null,null,null,null,null,null,"May"]
[null,null,null,null,null,null,null,null,null,null,null,"Jun"]
[null,null,null,null,null,null,null,null,null,null,null,"Jul"]
[null,null,null,null,null,null,null,null,null,null,null,"Aug"]
[null,null,null,null,null,null,null,null,null,null,null,"Sep"]
[null,null,null,null,null,null,null,null,null,null,null,"Oct"]
[null,null,null,null,null,null,null,null,null,null,null,"Nov"]
[null,null,null,null,null,null,null,null,null,null,null,"Dec"]
[null,null,null,null,null,null,null,null,null,null,null,"Annual",{"$f":"AVERAGE(M25:M36)","v":{"$error":"#DIV/0!"}},null,{"$f":"MAX(O25:O36)","v":0},{"$f":"AVERAGE(P25:P36)","v":{"$error":"#DIV/0!"}},{"$f":"MAX(Q25:Q36)","v":0}]
[]
[null,null,null,null,null,null,null,null,null,null,{"$f":"+A8","v":2025},"mg/Nm3","Highest daily 95%ile 10-min average","Monthly mean of 10-min averages","Highest 10-min average","Monthly mean of  daily averages","Highest daily average"]
[null,null,null,null,null,null,null,null,null,null,"A3","Jan"]
[null,null,null,null,null,null,null,null,null,null,null,"Feb"]
[null,null,null,null,null,null,null,null,null,null,null,"Mar"]
[null,null,null,null,null,null,null,null,null,null,null,"Apr"]
[null,null,null,null,null,null,null,null,null,null,null,"May"]
[null,null,null,null,null,null,null,null,null,null,null,"Jun"]
[null,null,null,null,null,null,null,null,null,null,null,"Jul"]
[null,null,null,null,null,null,null,null,null,null,null,"Aug"]
[null,null,null,null,null,null,null,null,null,null,null,"Sep"]
[null,null,null,null,null,null,null,null,null,null,null,"Oct"]
[null,null,null,null,null,null,null,null,null,null,null,"Nov"]
["Comments :",null,null,null,null,null,null,null,null,null,null,"Dec"]
["Environment Agency explanatory note: The 10-minute average ELV is based on the “95th percentile”. In this case this means that 95% of the 10 minute averages in the relevant 24-hour period (i.e. 137) must be below 150 mg/Nm3, and 5% (i.e. 7) are allowed to be any value above 150 mg/Nm3. Whilst we expect operators to minimise CO emissions at all times, it is perfectly acceptable for the value of the maximum 10-minute average to be above 150 mg/Nm3, provided the 95th percentile ELV has been met for that period. ",null,null,null,null,null,null,null,null,null,null,"Annual",{"$f":"AVERAGE(M40:M51)","v":{"$error":"#DIV/0!"}},null,{"$f":"MAX(O40:O51)","v":0},{"$f":"AVERAGE(P40:P51)","v":{"$error":"#DIV/0!"}},{"$f":"MAX(Q40:Q51)","v":0}]
[]
[null,null,null,null,null,null,null,null,null,null,{"$f":"+A8","v":2025},"mg/Nm3","Highest daily 95%ile 10-min average","Monthly mean of 10-min averages","Highest 10-min average","Monthly mean of  daily averages","Highest daily average"]
[null,null,null,null,null,null,null,null,null,null,"A4","Jan"]
[null,null,null,null,null,null,null,null,null,null,null,"Feb"]
[null,null,null,null,null,null,null,null,null,null,null,"Mar"]
[null,null,null,null,null,null,null,null,null,null,null,"Apr"]
[null,null,null,null,null,null,null,null,null,null,null,"May"]
[null,null,null,null,null,null,null,null,null,null,null,"Jun"]
[null,null,null,null,null,null,null,null,null,null,null,"Jul"]
[null,null,null,null,null,null,null,null,null,null,null,"Aug"]
[null,null,null,null,null,null,null,null,null,null,null,"Sep"]
[null,null,null,null,null,null,null,null,null,null,null,"Oct"]
[null,null,null,null,null,null,null,null,null,null,null,"Nov"]
[null,null,null,null,null,null,null,null,null,null,null,"Dec"]
[null,null,null,null,null,null,null,null,null,null,null,"Annual",{"$f":"AVERAGE(M55:M66)","v":{"$error":"#DIV/0!"}},null,{"$f":"MAX(O55:O66)","v":0},{"$f":"AVERAGE(P55:P66)","v":{"$error":"#DIV/0!"}},{"$f":"MAX(Q55:Q66)","v":0}]
[]
[null,null,null,null,null,null,null,null,null,null,{"$f":"+A8","v":2025},"mg/Nm3","95%ile 10-min avg maximum","Monthly CO 10-min avg mean","10-min avg maximum","Monthly daily mean","Monthly daily maximum"]
[null,null,null,null,null,null,null,null,null,null,"A5","Jan"]
[null,null,null,null,null,null,null,null,null,null,null,"Feb"]
[null,null,null,null,null,null,null,null,null,null,null,"Mar"]
[null,null,null,null,null,null,null,null,null,null,null,"Apr"]
[null,null,null,null,null,null,null,null,null,null,null,"May"]
[null,null,null,null,null,null,null,null,null,null,null,"Jun"]
[null,null,null,null,null,null,null,null,null,null,null,"Jul"]
[null,null,null,null,null,null,null,null,null,null,null,"Aug"]
[null,null,null,null,null,null,null,null,null,null,null,"Sep"]
[null,null,null,null,null,null,null,null,null,null,null,"Oct"]
[null,null,null,null,null,null,null,null,null,null,null,"Nov"]
[null,null,null,null,null,null,null,null,null,null,null,"Dec"]
[null,null,null,null,null,null,null,null,null,null,null,"Annual",{"$f":"AVERAGE(M70:M81)","v":{"$error":"#DIV/0!"}},null,{"$f":"MAX(O70:O81)","v":0},{"$f":"AVERAGE(P70:P81)","v":{"$error":"#DIV/0!"}},{"$f":"MAX(Q70:Q81)","v":0}]

{"sheet":"NH3","index":21,"n_rows":79,"n_cols":17,"rows_kept":79,"cut":false,"hidden":false,"merged":[[3,16,7,18],[9,16,11,18],[12,16,15,18],[66,9,78,9],[4,1,4,3],[4,4,4,6],[4,9,4,14],[6,9,18,9],[21,9,33,9],[36,9,48,9],[47,0,47,6],[48,0,51,6],[51,9,63,9],[18,4,18,6]]}
[{"$f":"+'Cover Page'!$B$29","v":"Annual Performance Report 2025"},null,null,null,{"$f":"+'Cover Page'!$B$33","v":"Ellesmere Port Incinerator"}]
[]
["Monitoring of Ammnonia emissions ",null,null,"Whole Installation",null,null,"See  Notes in Cell Q3",null,null,{"$f":"+A3","v":"Monitoring of Ammnonia emissions "},null,null,null,"Per Combustion Line",null,null,"Notes:"]
[null,null,null,null,null,null,null,null,null,null,null,null,null,null,null,null,"User to add logic to complete Whole installation, Table A5:G18. From the data in Per Combustion Line, Table J6:O79, subject to No. of lines installed"]
[{"$f":"+'Cover Page'!C39","v":2025},"1/2 Hourly Reference Periods",null,null,"Daily Reference Periods"]
["mg/Nm3","1/2 hourly NH3 ELV","Monthly mean of half-hourly averages","Highest half- hourly average","Daily NH3 ELV","Monthly mean of  daily averages","Highest daily average",null,null,{"$f":"+A5","v":2025},"mg/Nm3","Monthly mean of half-hourly averages","Highest half- hourly average","Monthly mean of  daily averages","Highest daily average"]
["Jan","None",{"$f":"L7","v":2.2599999999999998},{"$f":"M7","v":9.5},10,{"$f":"N7","v":2},{"$f":"O7","v":5.0599999999999996},null,null,"A1","Jan",2.2599999999999998,9.5,2,5.0599999999999996]
["Feb",{"$f":"+B7","v":"None"},{"$f":"L8","v":0.46},{"$f":"M8","v":4.4000000000000004},10,{"$f":"N8","v":0.42},{"$f":"O8","v":1.83},null,null,null,"Feb",0.46,4.4000000000000004,0.42,1.83]
["Mar",{"$f":"+B8","v":"None"},0.87,5.5,10,0.73,2.46,null,null,null,"Mar",0.87,5.5,0.73,2.46,null,"Whole Installation table A5:G18:"]
["Apr","None",1.3,5.2,10,0.82,2.62,null,null,null,"Apr",1.3,5.2,0.82,2.62,null,"Mean: for 1/2 hourly and daily periods calculate mean of values across all operational combustion lines for the month"]
["May","None",0.2,1.2,10,0.12,0.38,null,null,null,"May",0.2,1.2,0.12,0.38]
["Jun","None",0.2,2,10,0.19,0.98,null,null,null,"Jun",0.2,2,0.19,0.98]
["Jul","None",1,8.1,10,0.81,3.62,null,null,null,"Jul",1,8.1,0.81,3.62,null,"Maximum: for 1/2 hourly and daily periods use the highest value across all operational combustion lines for the month"]
["Aug","None",0.6,2.6,10,0.57999999999999996,1.64,null,null,null,"Aug",0.6,2.6,0.57999999999999996,1.64]
["Sep","None",1.8,5,10,0.79,2.44,null,null,null,"Sep",1.8,5,0.79,2.44]
["Oct","None",0.5,2.5,10,0.4,1.28,null,null,null,"Oct",0.5,2.5,0.4,1.28]
["Nov","None",0.1,1,10,0.06,0.28999999999999998,null,null,null,"Nov",0.1,1,0.06,0.28999999999999998]
["Dec","None",0.2,2.5,10,0.13,0.46,null,null,null,"Dec",0.2,2.5,0.13,0.46]
[null,null,null,null,null,null,null,null,null,null,"Annual",{"$f":"AVERAGE(L7:L18)","v":0.79083333333333317},{"$f":"MAX(M7:M18)","v":9.5},{"$f":"AVERAGE(N7:N18)","v":0.58750000000000002},{"$f":"MAX(O7:O18)","v":5.0599999999999996}]
[]
[null,null,null,null,null,null,null,null,null,{"$f":"+A5","v":2025},"mg/Nm3","Monthly mean of half-hourly averages","Highest half- hourly average","Monthly mean of  daily averages","Highest daily average"]
[null,null,null,null,null,null,null,null,null,"A2","Jan"]
[null,null,null,null,null,null,null,null,null,null,"Feb"]
[null,null,null,null,null,null,null,null,null,null,"Mar"]
[null,null,null,null,null,null,null,null,null,null,"Apr"]
[null,null,null,null,null,null,null,null,null,null,"May"]
[null,null,null,null,null,null,null,null,null,null,"Jun"]
[null,null,null,null,null,null,null,null,null,null,"Jul"]
[null,null,null,null,null,null,null,null,null,null,"Aug"]
[null,null,null,null,null,null,null,null,null,null,"Sep"]
[null,null,null,null,null,null,null,null,null,null,"Oct"]
[null,null,null,null,null,null,null,null,null,null,"Nov"]
[null,null,null,null,null,null,null,null,null,null,"Dec"]
[null,null,null,null,null,null,null,null,null,null,"Annual",{"$f":"AVERAGE(L22:L33)","v":{"$error":"#DIV/0!"}},{"$f":"MAX(M22:M33)","v":0},{"$f":"AVERAGE(N22:N33)","v":{"$error":"#DIV/0!"}},{"$f":"MAX(O22:O33)","v":0}]
[]
[null,null,null,null,null,null,null,null,null,{"$f":"+A5","v":2025},"mg/Nm3","Monthly mean of half-hourly averages","Highest half- hourly average","Monthly mean of  daily averages","Highest daily average"]
[null,null,null,null,null,null,null,null,null,"A3","Jan"]
[null,null,null,null,null,null,null,null,null,null,"Feb"]
[null,null,null,null,null,null,null,null,null,null,"Mar"]
[null,null,null,null,null,null,null,null,null,null,"Apr"]
[null,null,null,null,null,null,null,null,null,null,"May"]
[null,null,null,null,null,null,null,null,null,null,"Jun"]
[null,null,null,null,null,null,null,null,null,null,"Jul"]
[null,null,null,null,null,null,null,null,null,null,"Aug"]
[null,null,null,null,null,null,null,null,null,null,"Sep"]
[null,null,null,null,null,null,null,null,null,null,"Oct"]
[null,null,null,null,null,null,null,null,null,null,"Nov"]
["Comments :",null,null,null,null,null,null,null,null,null,"Dec"]
["An indicated ELV value of zero in the table above means that no ammonia limit is/was set in the permit.\n",null,null,null,null,null,null,null,null,null,"Annual",{"$f":"AVERAGE(L37:L48)","v":{"$error":"#DIV/0!"}},{"$f":"MAX(M37:M48)","v":0},{"$f":"AVERAGE(N37:N48)","v":{"$error":"#DIV/0!"}},{"$f":"MAX(O37:O48)","v":0}]
[]
[null,null,null,null,null,null,null,null,null,{"$f":"+A5","v":2025},"mg/Nm3","Monthly mean of half-hourly averages","Highest half- hourly average","Monthly mean of  daily averages","Highest daily average"]
[null,null,null,null,null,null,null,null,null,"A4","Jan"]
[null,null,null,null,null,null,null,null,null,null,"Feb"]
[null,null,null,null,null,null,null,null,null,null,"Mar"]
[null,null,null,null,null,null,null,null,null,null,"Apr"]
[null,null,null,null,null,null,null,null,null,null,"May"]
[null,null,null,null,null,null,null,null,null,null,"Jun"]
[null,null,null,null,null,null,null,null,null,null,"Jul"]
[null,null,null,null,null,null,null,null,null,null,"Aug"]
[null,null,null,null,null,null,null,null,null,null,"Sep"]
[null,null,null,null,null,null,null,null,null,null,"Oct"]
[null,null,null,null,null,null,null,null,null,null,"Nov"]
[null,null,null,null,null,null,null,null,null,null,"Dec"]
[null,null,null,null,null,null,null,null,null,null,"Annual",{"$f":"AVERAGE(L52:L63)","v":{"$error":"#DIV/0!"}},{"$f":"MAX(M52:M63)","v":0},{"$f":"AVERAGE(N52:N63)","v":{"$error":"#DIV/0!"}},{"$f":"MAX(O52:O63)","v":0}]
[]
[null,null,null,null,null,null,null,null,null,{"$f":"+A5","v":2025},"mg/Nm3","Monthly mean of half-hourly averages","Highest half- hourly average","Monthly mean of  daily averages","Highest daily average"]
[null,null,null,null,null,null,null,null,null,"A5","Jan"]
[null,null,null,null,null,null,null,null,null,null,"Feb"]
[null,null,null,null,null,null,null,null,null,null,"Mar"]
[null,null,null,null,null,null,null,null,null,null,"Apr"]
[null,null,null,null,null,null,null,null,null,null,"May"]
[null,null,null,null,null,null,null,null,null,null,"Jun"]
[null,null,null,null,null,null,null,null,null,null,"Jul"]
[null,null,null,null,null,null,null,null,null,null,"Aug"]
[null,null,null,null,null,null,null,null,null,null,"Sep"]
[null,null,null,null,null,null,null,null,null,null,"Oct"]
[null,null,null,null,null,null,null,null,null,null,"Nov"]
[null,null,null,null,null,null,null,null,null,null,"Dec"]
[null,null,null,null,null,null,null,null,null,null,"Annual",{"$f":"AVERAGE(L67:L78)","v":{"$error":"#DIV/0!"}},{"$f":"MAX(M67:M78)","v":0},{"$f":"AVERAGE(N67:N78)","v":{"$error":"#DIV/0!"}},{"$f":"MAX(O67:O78)","v":0}]

{"sheet":"Template changes log","index":22,"n_rows":23,"n_cols":3,"rows_kept":23,"cut":false,"hidden":false,"merged":[]}
["Log of changes to template (Environment Agency use only)"]
[]
["Date","Description of change","New version number and date"]
["2024-01-16","Air (periodic) tab: corrected default O2 reference from 6 to 11% ","Version 23.5a (for incinerators) - 16/01/2024"]
["2024-09-23","Air (periodic) tab: corrected symbol for Thallium to Tl"]
["2024-09-23","Air (periodic) tab: removed last year's references to different emission limit values applying from 03/12/23 and updated all relevant ELVs"]
["2024-09-23","Tabs for continuously monitored pollutants (HCl, SO2 etc.): changed terminology in table headings to improve clarity"]
["2024-09-23","Tabs for continuously monitored pollutants (HCl, SO2 etc.): removed last year's references to different emission limit values applying from 03/12/23 and updated all relevant ELVs"]
["2024-09-23","Perf 1 tab: updated formula for water usage to report m3 rather than litres and corrected error with formula copying operator name"]
["2024-09-23","Operational Summary tab: table added on start-ups and shut-downs"]
["2024-09-23","Operational Summary tab: table added on dioxins and mercury protocols"]
["2024-09-23","Operational Summary tab: table added on AST, QAL 2 and calibration functions"]
["2024-09-23","CO2 N2O tab: various changes made to notes to reflect the fact that most plants should now have calibrated CEMS and flow meters + some have C14 samplers and more up to date industry data","Version 24a (for incinerators) - 23/09/24"]
["2024-11-08","CO2 N2O tab: Changed the N2O CO2 equivalence factor from 298 to 265 in line with recently updated government greenhouse gas figures: https://www.gov.uk/government/publications/greenhouse-gas-reporting-conversion-factors-2024"]
["2024-11-08","CO2 N2O tab: Added an additional requirement for municipal EfW plants to state the yearly average biogenic percentage of the waste by mass, and reference to a document which sets out a methodology for calculating NCV of waste from the results of C14 sampling."]
["2024-11-08","Permit Compliance tab: Two additional columns added + explanatory notes to the table entitled \"Summary of non-compliances under the permit\" to allow CCS scores to be stated where relevant. "]
["2024-11-08","Residue Quality tab: Note added explaining application of TOC and LOI limits and asking operators to report both metrics where measured. ","Version 24.1a (for incinerators) - 08/11/24"]
["2024-11-27","Operational Summary tab: table added on start-ups and shut-downs","Version 24.2a (for incinerators) - 27/11/24"]
["2025-11-27","Cover Page: Print as PDF and Print Report and pdf buttons deleted and blank columns removed; contents page deleted","Version 25.1a (for incinerators) - 27/11/25"]
["2025-11-27","Residue Quality tab renamed to \"Residues\", and Summary of residue handling table moved from Operational Summary tab to Residues tab."]
["2025-11-27","Various changes made to the Operational Data tab including\n•\tReformatting of the rows under the Operational data heading (Rows 3-8) to make it clearer what information is required. \n•\tAmendment of the rows under the Energy Usage / Export heading (Rows 26-32) to calculate an “indicative parasitic load” (now excluding energy imported)\n•\tAmendment of the unit for gas usage from cubic feet to cubic metres (Row 50) \n•\tSome amendments to the first 2 notes and other minor edits\n•\tDeleted \"Overall Availability, mean avg. of all lines, hrs\" row"]
["2025-11-27","Operational Summary tab: Note added requiring all emergency shut-downs be listed, irrespective of whether or not they were reportable. "]
["2025-11-27","CO2 N2O tab: Note added to ask operators to ensure that relevant data reported here matches that which will be submitted under the Pollution Inventory"]